Cogmind - Beta 14 *** ADVENTURER MODE // 2024.12.09 @ 08:45:06 // Winter2019/RPGLIKE Player: Gallgagger Result: Self-destructed Performance ------------- Evolutions (9) 4500 Regions Visited (33) 6600 Robots Destroyed (357) 1785 Value Destroyed (19600) 19600 Prototype IDs (14) 280 Alien Tech Used (0) 0 Bonus (16843) 16843 TOTAL SCORE: 49608 Bonus ------- High Alert Combat Kills 2955 Follower Combat Kills 5432 Entered Garrisons 2600 Used RIF Installer 6500 Friendly Fire -644 Cogmind --------- Core Integrity 579/1450 Matter 85/300 Energy 4/450 System Corruption 11% Temperature Cool (0) Movement Hovering (102) Ox1 Location -1/Command Parts ------- > --- POWER (3) -------- Micro Antimatter Reactor Micro Antimatter Reactor Quantum Reactor > --- PROPULSION (5) --- Cooled Aerolev Unit Linear Gravjet Linear Gravjet Improved Linear Gravjet > --- UTILITY (13) ----- Experimental Sensor Array (fused) Improved Signal Interpreter Advanced Salvage Targeting Computer Armor Integrity Analyzer Advanced Phase Shifter Advanced Shield Generator Relay Coupler [C] (140) Relay Coupler [Cutter] (86) Relay Coupler [Sentry] (4) Relay Coupler [Specialist] (13) Relay Coupler [Hunter] (8) > --- WEAPON (3) ------- Proton Burst Cannon Proton Burst Cannon Advanced Remote Datajack > --- INVENTORY (4) ---- Relay Coupler [Sentry] (98) Peak State ------------ > --- POWER ------------ Light Angular Momentum Engine Micro Antimatter Reactor Quantum Reactor > --- PROPULSION ------- Cooled Aerolev Unit Antigrav System Linear Gravjet Linear Gravjet Improved Linear Gravjet > --- UTILITY ---------- Experimental Sensor Array Improved Signal Interpreter Advanced Salvage Targeting Computer Core Analyzer Armor Integrity Analyzer Improved Medium Armor Plating Centrium Light Armor Plating Advanced Shield Generator Relay Coupler [C] Relay Coupler [Sentry] Relay Coupler [Specialist] Relay Coupler [Hunter] Relay Coupler [Heavy] > --- WEAPON ----------- Improved Arc Projector Hypervelocity Railgun Advanced Remote Datajack > --- INVENTORY -------- Relay Coupler [C] Relay Coupler [C] Relay Coupler [C] Relay Coupler [C] [Rating: 151] Favorites ----------- Power Light Angular Momentum Engine Engine Light Angular Momentum Engine Power Core Micro Nuclear Core Reactor Micro Antimatter Reactor Propulsion Linear Gravjet Wheel Compact Wheel Hover Unit Linear Gravjet Utility Experimental Sensor Array Device Experimental Sensor Array Processor Improved Signal Interpreter Hackware Relay Coupler [Sentry] Protection Centrium Light Armor Plating Weapon Improved Arc Projector Energy Gun Improved Arc Projector Energy Cannon Proton Burst Cannon Ballistic Gun Hypervelocity Coil Gun Launcher Rocket Launcher Special Weapon Advanced Remote Datajack Impact Weapon Powered Hammer Special Melee Weapon Advanced Datajack Build | -11 -10 -10 -10 -9 -8 -8 -8 -8 -8 -7 -7 -7 -7 -6 -6 -6 -6 -5 -5 -5 -5 -4 -4 -3 -3 -2 -2 -2 -2 -1 -1 -1 -1 ------- Run | Yrd Mat Min Exi Min Mat Gar Mat Gar Mat Fac Gar Fac Gar Fac Gar Fac Gar Fac Gar Fac Gar Fac Gar Res Gar Res Gar Res Gar Acc Gar Acc Com Slots Evolved 20 | 4 2 . . 2 . 2 1 1 . 1 . . . . . 2 . . . . 1 1 . . 1 1 . . . 1 . . . Power 2 | 1 1 . . . . . . . . . . . . . . . . . . . . . . . . . . . . . . . . Propulsion 4 | 1 . . . . . 1 1 . . . . . . . . 1 . . . . . . . . . . . . . . . . . Utility 12 | 1 1 . . 1 . 1 . 1 . 1 . . . . . 1 . . . . 1 1 . . 1 1 . . . 1 . . . Weapon 2 | 1 . . . 1 . . . . . . . . . . . . . . . . . . . . . . . . . . . . . Parts Attached 108 | 6 6 2 . 3 8 11 1 8 2 3 1 1 4 1 2 6 . 2 . 1 3 1 2 . 5 2 3 2 1 3 4 6 8 Power 13 | 2 1 . . 1 . . . . 2 1 . . . 1 . . . . . . . . 1 . 1 1 . . . . . 1 1 Engine 6 | 2 1 . . 1 . . . . 2 . . . . . . . . . . . . . . . . . . . . . . . . Core 3 | . . . . . . . . . . 1 . . . 1 . . . . . . . . 1 . . . . . . . . . . Reactor 4 | . . . . . . . . . . . . . . . . . . . . . . . . . 1 1 . . . . . 1 1 Propulsion 19 | 2 . . . . 3 5 1 . . . . . 2 . . 4 . . . . . . . . . . . . . . . 1 1 Treads . | . . . . . . . . . . . . . . . . . . . . . . . . . . . . . . . . . . Leg . | . . . . . . . . . . . . . . . . . . . . . . . . . . . . . . . . . . Wheel 5 | 2 . . . . 3 . . . . . . . . . . . . . . . . . . . . . . . . . . . . Hover 14 | . . . . . . 5 1 . . . . . 2 . . 4 . . . . . . . . . . . . . . . 1 1 Flight . | . . . . . . . . . . . . . . . . . . . . . . . . . . . . . . . . . . Utility 44 | . 3 2 . 1 1 1 . 1 . 1 1 . 1 . 2 2 . 2 . 1 2 1 1 . 3 1 3 2 1 3 4 2 2 Device 9 | . 2 1 . . . . . . . . . . 1 . 1 . . 1 . 1 . . . . . . . 1 . . . . 1 Storage . | . . . . . . . . . . . . . . . . . . . . . . . . . . . . . . . . . . Processor 5 | . . . . 1 1 1 . 1 . . . . . . . 1 . . . . . . . . . . . . . . . . . Hackware 19 | . . . . . . . . . . . . . . . . . . . . . 1 1 1 . 3 1 3 1 1 3 3 1 . Protection 11 | . 1 1 . . . . . . . 1 1 . . . 1 1 . 1 . . 1 . . . . . . . . . 1 1 1 Artifact . | . . . . . . . . . . . . . . . . . . . . . . . . . . . . . . . . . . Weapon 32 | 2 2 . . 1 4 5 . 7 . 1 . 1 1 . . . . . . . 1 . . . 1 . . . . . . 2 4 Energy Gun 14 | . 2 . . . 3 5 . 3 . . . . . . . . . . . . . . . . . . . . . . . 1 . Energy Cannon 2 | . . . . . . . . . . . . . . . . . . . . . . . . . . . . . . . . . 2 Ballistic Gun 10 | 2 . . . . . . . 4 . 1 . . . . . . . . . . . . . . 1 . . . . . . . 2 Ballistic Cannon . | . . . . . . . . . . . . . . . . . . . . . . . . . . . . . . . . . . Launcher 3 | . . . . 1 1 . . . . . . . . . . . . . . . . . . . . . . . . . . 1 . Special Weapon 1 | . . . . . . . . . . . . . . . . . . . . . 1 . . . . . . . . . . . . Impact Weapon 1 | . . . . . . . . . . . . 1 . . . . . . . . . . . . . . . . . . . . . Slashing Weapon . | . . . . . . . . . . . . . . . . . . . . . . . . . . . . . . . . . . Piercing Weapon . | . . . . . . . . . . . . . . . . . . . . . . . . . . . . . . . . . . Special Melee Weapon 1 | . . . . . . . . . . . . . 1 . . . . . . . . . . . . . . . . . . . . Unidentified Prototypes 7 | . . 1 . . 1 . 1 . . . . . . . 1 1 . 1 . . . . . . . . . . . . . . 1 Parts Lost 4 | . . . . . . . . . . . . . . 1 . . . . . . 1 . . . . . . . . . . . 2 Power 1 | . . . . . . . . . . . . . . 1 . . . . . . . . . . . . . . . . . . . Propulsion 1 | . . . . . . . . . . . . . . . . . . . . . . . . . . . . . . . . . 1 Utility 2 | . . . . . . . . . . . . . . . . . . . . . 1 . . . . . . . . . . . 1 Weapon . | . . . . . . . . . . . . . . . . . . . . . . . . . . . . . . . . . . Highest Loss Streak 1 | . . . . . . . . . . . . . . 1 . . . . . . 1 . . . . . . . . . . . 1 To Critical Strikes 1 | . . . . . . . . . . . . . . . . . . . . . . . . . . . . . . . . . 1 Average Slot Usage (%) 98 | . 83 100 100 100 99 100 100 100 100 96 94 94 100 99 100 100 100 100 100 100 99 100 97 100 100 98 100 100 98 100 99 94 91 Engine 12 | . 29 30 30 27 25 22 20 19 18 11 11 11 11 10 5 5 5 5 5 5 5 4 4 4 4 4 4 4 4 4 3 . . Core 3 | . . . . . . . . . . 5 5 5 5 5 11 10 10 10 10 10 10 9 8 9 5 1 . . . . . . . Reactor 2 | . . . . . . . . . . . . . . . . . . . . . . . . . 2 6 8 8 8 8 8 8 9 Wheel 4 | . 20 20 20 17 15 11 . . . . . . . . . . . . . . . . . . . . . . . . . . . Hover 17 | . . . . . . 4 21 25 25 24 23 23 23 23 23 24 26 26 26 26 25 23 23 23 22 21 21 21 21 20 20 20 19 Device 14 | . 13 22 30 27 25 22 20 19 18 17 16 11 11 11 11 10 10 10 10 10 10 9 9 9 9 8 8 8 8 8 8 8 9 Processor 14 | . . . . 3 8 14 13 13 18 17 17 17 17 17 17 19 21 21 21 21 20 19 19 19 18 17 17 17 17 16 16 16 15 Hackware 5 | . . . . . . . . . . . . . . . . . . . . . 1 7 6 9 12 16 17 17 15 19 19 19 20 Protection 5 | . . 7 . . . . . . . 2 5 11 11 11 11 10 10 9 10 10 9 9 9 9 9 8 8 8 8 8 8 8 1 Energy Gun 8 | . 17 20 20 17 16 14 13 . 6 5 5 5 5 5 5 5 5 5 5 5 5 4 4 4 4 4 4 4 4 4 4 3 3 Ballistic Gun 3 | . 3 . . . . . . 12 6 5 5 5 5 5 5 5 5 5 5 5 5 4 4 4 4 4 4 4 4 4 4 4 3 Launcher 2 | . . . . 5 7 7 6 6 6 3 . . . . . . . . . . . . . . . . . . . . . . . Special Weapon 1 | . . . . . . . . . . . . . . . . . . . . . 1 4 4 4 4 4 4 4 4 4 4 4 4 Peak Build Rating 151 | 6 15 23 23 27 32 51 55 67 71 80 78 82 90 91 98 108 108 112 108 108 111 114 116 116 125 136 147 147 146 149 151 150 145 Average Rating 86 | 4 11 17 23 24 31 37 51 57 69 75 78 78 84 90 92 103 108 108 108 107 107 113 113 116 121 132 138 146 142 147 148 142 136 On Entrance 88 | . 6 15 23 23 27 32 51 55 67 71 78 78 82 90 91 98 108 108 108 108 106 111 114 116 116 125 136 147 146 144 149 145 141 Naked Turns . | . . . . . . . . . . . . . . . . . . . . . . . . . . . . . . . . . . Heaviest Build 76 | 10 21 23 21 29 29 29 29 34 40 49 51 54 56 54 56 56 56 56 56 56 54 54 54 54 57 70 70 70 70 70 70 68 76 Greatest Support 78 | 32 32 32 32 32 32 44 52 52 52 52 52 57 59 59 59 68 68 68 68 68 68 68 68 68 68 73 73 73 73 73 73 73 78 Greatest Overweight (x) 2 | 2 . . . . 2 1 . . . . . . . . . . . . . . . . . . . . . . . . . . 1 Average Overweight (x) . | . . . . . . . . . . . . . . . . . . . . . . . . . . . . . . . . . . Largest Inventory Capacity 4 | . . . . . . . . 1 1 1 1 1 1 1 1 1 1 1 1 1 3 3 4 4 4 4 4 4 4 4 4 4 4 Average Capacity 1 | . . . . . . . . . 1 1 1 1 1 1 1 1 1 1 1 1 1 3 3 4 4 4 4 4 4 4 4 4 4 Most Carried 4 | . . . . . . . . 1 1 1 1 1 1 1 1 1 1 1 1 1 3 3 4 4 4 4 4 4 4 4 4 4 2 Average Carried 1 | . . . . . . . . . 1 . 1 1 1 1 1 1 1 1 1 1 1 2 3 4 3 3 3 3 3 2 3 3 1 Final Capacity 4 | . . . . . . . . 1 1 1 1 1 1 1 1 1 1 1 1 1 3 3 4 4 4 4 4 4 4 4 4 4 4 Final Carried 4 | . . . . . . . . 1 1 1 1 1 1 1 1 1 1 1 1 1 3 2 4 4 4 4 4 3 4 2 4 2 1 Class Distribution -------------------- 31% | Hacker-Scout 18% | Botlord-Scout 15% | Hacker-Gunner 11% | Commander-Scout 10% | Mutant 6% | Skirmisher 4% | Bothacker-Scout Dominant Class ---------------- Mutant | -10/Materials Mutant | -10/Mines Mutant | -10/Exiles Skirmisher | -9/Mines Skirmisher | -8/Materials Hacker-Gunner | -8/Garrison Hacker-Gunner | -8/Materials Hacker-Gunner | -8/Garrison Hacker-Scout | -8/Materials Hacker-Scout | -7/Factory Hacker-Scout | -7/Garrison Hacker-Scout | -7/Factory Hacker-Scout | -7/Garrison Hacker-Scout | -6/Factory Hacker-Scout | -6/Garrison Hacker-Scout | -6/Factory Hacker-Scout | -6/Garrison Hacker-Scout | -5/Factory Hacker-Scout | -5/Garrison Hacker-Scout | -5/Factory Hacker-Scout | -5/Garrison Bothacker-Scout | -4/Factory Botlord-Scout | -4/Garrison Botlord-Scout | -3/Research Botlord-Scout | -3/Garrison Botlord-Scout | -2/Research Botlord-Scout | -2/Garrison Commander-Scout | -2/Research Commander-Scout | -2/Garrison Commander-Scout | -1/Access Commander-Scout | -1/Garrison Commander-Scout | -1/Access Botlord-Scout | -1/Command Resources | -11 -10 -10 -10 -9 -8 -8 -8 -8 -8 -7 -7 -7 -7 -6 -6 -6 -6 -5 -5 -5 -5 -4 -4 -3 -3 -2 -2 -2 -2 -1 -1 -1 -1 ----------- Run | Yrd Mat Min Exi Min Mat Gar Mat Gar Mat Fac Gar Fac Gar Fac Gar Fac Gar Fac Gar Fac Gar Fac Gar Res Gar Res Gar Res Gar Acc Gar Acc Com Matter Collected 8978 | 209 101 40 . 30 80 125 . 716 308 250 280 110 358 . 547 . 313 . 141 305 720 211 599 . 420 225 400 181 306 277 817 485 424 Remotely . | . . . . . . . . . . . . . . . . . . . . . . . . . . . . . . . . . . Salvage Created 15962 | . 412 . . 247 1032 980 783 974 1272 661 689 231 786 137 1146 30 378 . 798 350 1268 420 593 30 452 389 343 18 412 50 610 121 350 Parts 1207 | . 32 9 . 10 55 66 61 95 100 73 49 13 60 10 116 5 39 . 59 24 83 13 50 5 46 26 11 2 30 1 36 7 21 Haulers Intercepted 2 | . . . . . . . . . 1 1 . . . . . . . . . . . . . . . . . . . . . . . Recyclers Shooed 3 | . . . . . 1 . . . 1 1 . . . . . . . . . . . . . . . . . . . . . . . Parts Field Recycled . | . . . . . . . . . . . . . . . . . . . . . . . . . . . . . . . . . . Retrieved Matter . | . . . . . . . . . . . . . . . . . . . . . . . . . . . . . . . . . . Parts Self-Destructed . | . . . . . . . . . . . . . . . . . . . . . . . . . . . . . . . . . . Prevented . | . . . . . . . . . . . . . . . . . . . . . . . . . . . . . . . . . . Kills | -11 -10 -10 -10 -9 -8 -8 -8 -8 -8 -7 -7 -7 -7 -6 -6 -6 -6 -5 -5 -5 -5 -4 -4 -3 -3 -2 -2 -2 -2 -1 -1 -1 -1 ------- Run | Yrd Mat Min Exi Min Mat Gar Mat Gar Mat Fac Gar Fac Gar Fac Gar Fac Gar Fac Gar Fac Gar Fac Gar Res Gar Res Gar Res Gar Acc Gar Acc Com Combat Hostiles Destroyed 310 | . 11 6 . 8 20 27 14 27 18 14 11 4 18 2 27 . 16 . 17 5 19 2 12 . 9 4 3 . 5 . 8 . 3 Guns 273 | . 10 4 . 7 15 20 13 27 17 13 11 4 18 2 23 . 15 . 11 5 15 2 10 . 9 3 3 . 5 . 8 . 3 AOE 27 | . . 2 . 1 4 4 . . 1 1 . . . . 3 . 1 . 4 . 4 . 2 . . . . . . . . . . Classes Destroyed 20 | . 4 . . 2 3 2 2 2 2 . . . . . 2 . . . . . . . . . 1 . . . . . . . . Worker 6 | . . . . . 1 . 1 . 1 1 . . . . . . . . . . . . . . . . . 1 . . . 1 . Builder 5 | . 1 . . . 1 . . . . 1 . . . . . . . . . 1 . . . . . 1 . . . . . . . Tunneler 2 | . . . . . . . . . 1 . . . . . . . . . . . . . . . . 1 . . . . . . . Hauler 2 | . . . . . . . . . 1 1 . . . . . . . . . . . . . . . . . . . . . . . Recycler 1 | . . . . . . . 1 . . . . . . . . . . . . . . . . . . . . . . . . . . Operator 7 | . . . . . . . 1 . 3 . . . . . . 1 . . . 1 . . . 1 . . . . . . . . . Watcher 22 | . 3 . . . 2 . 5 1 5 . . . . 1 . . . . . . . 2 . . . 1 . . . 1 . 1 . Swarmer 95 | . 3 6 . 3 7 9 5 7 3 1 . 2 . . 7 . 13 . 11 . 7 1 5 . 2 1 1 . . . . 1 . Saboteur 2 | . . . . . . . . . . . . . . . . . . . . . . . . . 2 . . . . . . . . Grunt 103 | . 8 . . 2 8 8 2 10 7 6 4 1 12 2 8 . 2 . 3 4 5 2 5 . 1 . 1 . 1 . 1 . . Brawler 3 | . . . . 1 . . . . . . . . 1 . . . . . . . . . 1 . . . . . . . . . . Duelist 4 | . . . . . 1 . . . . . . . 1 . . . 1 . . . 1 . . . . . . . . . . . . Sentry 53 | . . . . . 4 6 7 1 8 3 2 1 . . 7 . . . 2 1 2 . 1 . . 2 1 . 3 . 2 . . Demolisher 1 | . . . . . . . . . . . . . . . 1 . . . . . . . . . . . . . . . . . . Specialist 6 | . . . . . . . . 3 . . 2 . 1 . . . . . . . . . . . . . . . . . . . . Hunter 21 | . . . . . . 1 . . . 3 2 . 2 . 2 . . . . . 3 1 . . 2 1 . . 2 . 1 . 1 Programmer 18 | . . . . . . 3 . 5 . 1 1 . 1 . . . . . . . . . . . 2 . . . . . 4 . 1 Behemoth 3 | . . . . . . . . 1 . . . . . . . . . . 1 . 1 . . . . . . . . . . . . Striker 3 | . . . . . . . . . . . . . . . 2 . . . . . . . . . . . . . . . . . 1 Assembled 2 | . . . . 2 . . . . . . . . . . . . . . . . . . . . . . . . . . . . . Best Kill Streak 10 | . 4 3 . 3 8 4 4 8 6 4 4 1 7 2 7 1 10 . 5 4 7 1 3 1 2 2 1 1 2 1 2 1 1 Combat Bots Only 10 | . 3 3 . 3 7 4 4 8 3 4 4 1 7 1 7 . 10 . 5 4 7 1 3 . 2 1 1 . 2 . 2 . 1 Max Kills in Single Turn 3 | . 2 2 . 2 2 2 1 1 1 1 2 1 1 1 2 1 2 . 2 2 3 1 2 1 2 2 1 1 1 1 1 1 1 Gunslinging 1 | . . . . 1 . . . . . . . . . . . . 1 . . . . . . . . . . . . . . . . Exploded 3 | . . 2 . 1 1 1 . . 1 1 . . . . 2 . 1 . 2 . 3 . 1 . . . . . . . . . . Melee . | . . . . . . . . . . . . . . . . . . . . . . . . . . . . . . . . . . Uniques/NPCs Destroyed . | . . . . . . . . . . . . . . . . . . . . . . . . . . . . . . . . . . Combat | -11 -10 -10 -10 -9 -8 -8 -8 -8 -8 -7 -7 -7 -7 -6 -6 -6 -6 -5 -5 -5 -5 -4 -4 -3 -3 -2 -2 -2 -2 -1 -1 -1 -1 -------- Run | Yrd Mat Min Exi Min Mat Gar Mat Gar Mat Fac Gar Fac Gar Fac Gar Fac Gar Fac Gar Fac Gar Fac Gar Res Gar Res Gar Res Gar Acc Gar Acc Com Hostile Shots Fired 2318 | . 31 26 . 12 47 122 35 168 42 159 119 7 86 51 218 . 82 . 136 21 127 23 106 . 70 22 46 19 78 8 137 39 281 Missed 952 | . 10 10 . 2 15 40 16 59 23 68 51 1 39 22 91 . 28 . 50 8 55 8 48 . 25 12 17 9 33 4 50 26 132 Damage Taken 14607 | . 141 78 . 45 224 765 136 953 163 568 322 44 540 296 1284 16 312 . 822 228 998 380 706 . 534 151 529 181 702 70 1131 378 1910 Core 10031 | . 109 60 . 35 175 603 103 759 124 398 195 26 309 177 808 12 204 . 552 126 661 281 486 . 350 116 341 131 492 40 711 252 1395 Absorbed by Shields 6035 | . 38 35 . 18 88 292 53 367 63 210 119 18 203 109 486 16 323 . 607 185 368 136 267 . 200 57 190 65 249 24 416 132 701 Redirected to Core 8655 | . 78 43 . 21 148 500 100 625 124 325 155 26 255 141 740 12 186 . 448 126 568 274 431 . 285 91 301 107 391 40 604 225 1285 Redirected to Shielding 3 | . . 3 . . . . . . . . . . . . . . . . . . . . . . . . . . . . . . . Ignored by Resistances 5851 | . 58 37 . 22 91 303 54 386 66 241 146 19 210 119 497 9 188 . 396 110 374 138 282 . 207 57 198 66 256 27 433 137 724 Core Remaining (%) 98 | 100 . . . 94 . . . . 100 . . . 96 . . . 99 . . . 97 . 100 . 100 . . . 100 . . . . Volleys Fired 1595 | . 26 8 . 12 49 70 34 82 52 50 51 22 72 16 92 8 46 . 71 27 115 33 117 1 86 30 61 19 48 27 125 79 66 Largest 2 | . 2 2 . 2 2 2 2 2 2 2 2 2 2 2 2 2 2 . 2 2 2 2 2 2 2 2 2 2 2 2 2 2 2 Hottest 200 | . 90 90 . 90 100 130 100 100 100 100 100 100 100 100 100 100 100 . 100 100 100 100 100 100 100 105 105 105 105 105 105 105 200 Shots Fired 2591 | . 52 16 . 24 98 133 66 159 102 97 88 26 131 32 160 11 78 . 135 36 214 54 165 2 102 41 75 23 67 35 171 92 106 Gun 2367 | . 52 16 . 24 98 133 66 159 102 97 88 26 131 32 160 11 78 . 135 36 203 45 137 2 82 33 58 11 53 16 136 63 84 Cannon 7 | . . . . . . . . . . . . . . . . . . . . . . . . . . . . . . . . . 7 Launcher 1 | . . . . . . . . . . . . . . . . . . . . . . . . . . . . . . . . 1 . Special 216 | . . . . . . . . . . . . . . . . . . . . . 11 9 28 . 20 8 17 12 14 19 35 28 15 Kinetic 1090 | . 10 . . . . . . 151 52 48 50 22 64 16 83 8 42 . 69 27 104 24 57 1 39 22 25 4 26 8 68 24 46 Thermal 22 | . . . . . . 22 . . . . . . . . . . . . . . . . . . . . . . . . . . . Explosive 1 | . . . . . . . . . . . . . . . . . . . . . . . . . . . . . . . . 1 . Electromagnetic 1262 | . 42 16 . 24 98 111 66 8 50 49 38 4 67 16 77 3 36 . 66 9 99 21 80 1 43 11 33 7 27 8 68 39 45 Robot Hit Streak 74 | . 11 5 . 9 30 22 33 30 56 50 33 11 42 53 49 45 68 . 36 22 45 21 50 52 58 23 22 29 24 30 72 35 74 Robot Miss Streak 4 | . 2 4 . 2 2 1 1 1 2 1 2 1 1 . 2 . 2 . 1 1 1 1 2 . 1 1 1 1 1 2 1 1 1 Penetration Max 3 | . . . . . . . . 1 2 2 1 1 2 1 1 . 1 . 2 2 1 1 3 . 1 1 . . 2 . 1 1 2 Secondary Targets 27 | . . 1 . 1 2 7 1 4 2 . 2 . 1 1 . . 3 . 1 . . . 1 . . . . . . . . . . Max Gunslinging Chain 1 | . . 1 . 1 1 1 1 1 1 . 1 . 1 1 . . 1 . 1 . . . 1 . . . . . . . . . . Shots Hit Robots 2083 | . 37 9 . 17 81 95 54 108 82 87 68 15 112 36 133 9 63 1 124 30 196 50 138 2 67 34 52 20 55 32 123 51 102 Core Hits 888 | . 19 6 . 9 35 40 31 50 53 49 30 11 54 15 58 4 34 . 61 18 73 17 58 1 18 21 19 2 19 5 41 10 27 Critical Kills 129 | . . . . . . . . 6 9 9 5 2 10 2 19 1 6 . 6 6 6 3 7 1 8 5 3 . 5 . 6 2 2 Critical Parts Destroyed 161 | . . . . . . . . 2 11 6 9 4 16 3 13 2 4 . 9 4 14 5 9 . 9 5 2 . 4 . 16 4 10 Critical Strikes 329 | . . 1 . . 4 1 2 9 20 16 16 6 29 6 37 3 10 . 19 11 24 8 17 1 17 12 6 1 9 . 24 6 14 Burn 1 | . . . . . . 1 . . . . . . . . . . . . . . . . . . . . . . . . . . . Destroy 321 | . . . . . . . . 9 20 16 16 6 29 6 37 3 10 . 19 11 24 8 17 1 17 12 6 1 9 . 24 6 14 Corrupt 7 | . . 1 . . 4 . 2 . . . . . . . . . . . . . . . . . . . . . . . . . . Melee Attacks 19 | . . . . . . . . . . . . 2 . 4 1 1 . 1 1 1 8 . . . . . . . . . . . . Impact 2 | . . . . . . . . . . . . 2 . . . . . . . . . . . . . . . . . . . . . Slashing . | . . . . . . . . . . . . . . . . . . . . . . . . . . . . . . . . . . Piercing . | . . . . . . . . . . . . . . . . . . . . . . . . . . . . . . . . . . Sneak Attacks 16 | . . . . . . . . . . . . . . 4 1 1 . 1 1 1 7 . . . . . . . . . . . . Combat Hostiles 10 | . . . . . . . . . . . . . . 2 1 . . . 1 1 5 . . . . . . . . . . . . Follow-up Attacks . | . . . . . . . . . . . . . . . . . . . . . . . . . . . . . . . . . . Damage Inflicted 26619 | . 567 226 . 319 1732 1860 1181 2399 1212 1005 684 183 1250 387 1809 96 742 . 1469 450 2205 508 1903 25 501 344 339 102 450 292 1097 331 951 Guns 23037 | . 567 115 . 222 1389 1617 1093 2399 1114 965 684 183 1250 319 1454 96 634 . 1264 280 1781 508 1227 25 501 344 339 102 450 149 914 331 721 Cannons 175 | . . . . . . . . . . . . . . . . . . . . . . . . . . . . . . . . . 175 Explosions 3399 | . . 111 . 97 343 243 80 . 98 40 . . . 68 355 . 108 . 205 170 424 . 676 . . . . . . 143 183 . 55 Melee . | . . . . . . . . . . . . . . . . . . . . . . . . . . . . . . . . . . Ramming 8 | . . . . . . . 8 . . . . . . . . . . . . . . . . . . . . . . . . . . Kinetic 9510 | . 65 . . . . . . 2313 375 344 318 134 548 128 596 52 263 . 594 191 720 185 495 7 269 228 201 34 193 64 568 196 429 Thermal 3691 | . . 111 . 97 343 631 80 . 98 . . . . 68 355 . 108 . 205 114 424 . 676 . . . . . . 143 183 . 55 Explosive 96 | . . . . . . . . . . 40 . . . . . . . . . 56 . . . . . . . . . . . . . Electromagnetic 13314 | . 502 115 . 222 1389 1229 1093 86 739 621 366 49 702 191 858 44 371 . 670 89 1061 323 732 18 232 116 138 68 257 85 346 135 467 Impact . | . . . . . . . . . . . . . . . . . . . . . . . . . . . . . . . . . . Slashing . | . . . . . . . . . . . . . . . . . . . . . . . . . . . . . . . . . . Piercing . | . . . . . . . . . . . . . . . . . . . . . . . . . . . . . . . . . . Highest Corruption 11 | . . . . . . 2 2 3 3 . . . 1 1 1 1 1 . . . . . . . 1 . 1 1 2 . 6 7 11 Average Corruption 2 | . . . . . . 1 2 2 3 . . . 1 1 1 1 1 . . . . . . . 1 . 1 1 1 . 3 6 8 Corruption Purged . | . . . . . . . . . . . . . . . . . . . . . . . . . . . . . . . . . . Corruption Blocked . | . . . . . . . . . . . . . . . . . . . . . . . . . . . . . . . . . . Effects 125 | . . . . . . 7 13 9 10 . . . . . 5 1 2 . . . . . . . 3 . 3 4 7 . 12 31 18 Message Errors 25 | . . . . . . . 3 3 . . . . . . 1 . . . . . . . . . . . 1 2 2 . 3 6 4 Matter Fused 34 | . . . . . . 2 . 2 4 . . . . . 1 . 1 . . . . . . . 2 . . 2 1 . 4 9 6 Heat Flow Errors 15 | . . . . . . 1 4 1 1 . . . . . . . . . . . . . . . . . . . 1 . 2 3 2 Energy Discharges 20 | . . . . . . 2 1 2 2 . . . . . 2 1 1 . . . . . . . . . 1 . 1 . 1 6 . Parts Rejected 1 | . . . . . . . . . . . . . . . . . . . . . . . . . . . . . . . 1 . . Parts Fused 1 | . . . . . . . . 1 . . . . . . . . . . . . . . . . . . . . . . . . . Data Loss (minor) 10 | . . . . . . . 1 . 2 . . . . . . . . . . . . . . . 1 . 1 . 1 . . 2 2 Data Loss (major) 7 | . . . . . . . 2 . . . . . . . 1 . . . . . . . . . . . . . . . . 2 2 Misfires 4 | . . . . . . . . . . . . . . . . . . . . . . . . . . . . . . . 1 2 1 Alerts 2 | . . . . . . . . . 1 . . . . . . . . . . . . . . . . . . . . . . 1 . Weapon Failures 6 | . . . . . . 2 2 . . . . . . . . . . . . . . . . . . . . . 1 . . . 1 Overload Shots . | . . . . . . . . . . . . . . . . . . . . . . . . . . . . . . . . . . Overflow Damage 92 | . . . . . 30 . 31 . . . . . . . . . . . . . . . . . . . . . . . . . 31 Projectiles . | . . . . . . . . . . . . . . . . . . . . . . . . . . . . . . . . . . Explosions 92 | . . . . . 30 . 31 . . . . . . . . . . . . . . . . . . . . . . . . . 31 Melee . | . . . . . . . . . . . . . . . . . . . . . . . . . . . . . . . . . . Knockbacks . | . . . . . . . . . . . . . . . . . . . . . . . . . . . . . . . . . . Impact . | . . . . . . . . . . . . . . . . . . . . . . . . . . . . . . . . . . Kinetic . | . . . . . . . . . . . . . . . . . . . . . . . . . . . . . . . . . . Secondary . | . . . . . . . . . . . . . . . . . . . . . . . . . . . . . . . . . . Self-Inflicted Damage 575 | . . 18 . . . 26 4 . . . . . . . 106 . . . . 177 82 . . . . . . . . 16 39 57 50 Shots 13 | . . 1 . . . 1 . . . . . . . . 2 . . . . 3 2 . . . . . . . . 1 1 1 1 Rammed 1 | . . . . . . . 1 . . . . . . . . . . . . . . . . . . . . . . . . . . Targets Rammed 1 | . . . . . . . 1 . . . . . . . . . . . . . . . . . . . . . . . . . . Kicked . | . . . . . . . . . . . . . . . . . . . . . . . . . . . . . . . . . . Crushed . | . . . . . . . . . . . . . . . . . . . . . . . . . . . . . . . . . . Highest Temperature 229 | . 180 . . . 5 34 229 73 171 6 . . . . . . 8 . 8 . 191 . 8 . 10 . 4 . 126 . 105 167 187 Average Temperature 53 | . 52 . . . 4 12 82 41 109 6 . . . . . . 8 . 8 . 92 . 5 . 10 . 3 . 48 . 39 66 47 Received Heat Transfer 2712 | . 101 . . 12 121 239 61 316 110 139 74 . 108 61 196 . 20 . 146 30 457 54 132 . 29 18 92 42 42 . 62 6 44 Siege Activations . | . . . . . . . . . . . . . . . . . . . . . . . . . . . . . . . . . . Robots Corrupted 11 | . 1 . . . 1 3 1 . . . . . . . 1 . . . 2 . 2 . . . . . . . . . . . . Combat Hostiles 11 | . 1 . . . 1 3 1 . . . . . . . 1 . . . 2 . 2 . . . . . . . . . . . . Parts Fried 60 | . 4 1 . 2 5 4 7 . 2 1 1 . 3 . 4 . 2 . 2 . 12 3 1 1 2 1 . . . 2 . . . Impact Corruptions . | . . . . . . . . . . . . . . . . . . . . . . . . . . . . . . . . . . Robots Melted . | . . . . . . . . . . . . . . . . . . . . . . . . . . . . . . . . . . Combat Hostiles . | . . . . . . . . . . . . . . . . . . . . . . . . . . . . . . . . . . Parts Melted 11 | . . . . . . 3 . . . . . . . . . . . . . 1 . . . . . 5 2 . . . . . . Heat Transferred 3715 | . . 100 . 150 400 1114 100 . 50 . . . . 50 251 . 100 . 250 50 200 . 400 . . . . . . 100 350 . 50 Parts Sabotaged . | . . . . . . . . . . . . . . . . . . . . . . . . . . . . . . . . . . Parts Stolen . | . . . . . . . . . . . . . . . . . . . . . . . . . . . . . . . . . . Parts Stripped . | . . . . . . . . . . . . . . . . . . . . . . . . . . . . . . . . . . Power Chain Reactions 38 | . . 1 . 1 6 5 3 . 1 . . . . 1 4 . 2 . 2 . 5 . 3 . . . . . . 2 1 . 1 Alert | -11 -10 -10 -10 -9 -8 -8 -8 -8 -8 -7 -7 -7 -7 -6 -6 -6 -6 -5 -5 -5 -5 -4 -4 -3 -3 -2 -2 -2 -2 -1 -1 -1 -1 ------- Run | Yrd Mat Min Exi Min Mat Gar Mat Gar Mat Fac Gar Fac Gar Fac Gar Fac Gar Fac Gar Fac Gar Fac Gar Res Gar Res Gar Res Gar Acc Gar Acc Com Peak Influence 1229 | . 236 156 . 158 547 982 871 898 853 652 361 348 837 442 1094 522 877 398 1010 865 1229 974 1040 520 1055 767 1008 525 480 567 589 436 132 Initial 559 | . . 77 . . . 17 412 160 376 152 57 163 145 371 205 497 322 398 254 459 163 559 192 509 345 516 502 493 279 252 247 296 65 Average 452 | . 115 88 . 101 168 558 639 619 530 382 238 229 559 340 643 507 630 398 646 710 568 719 726 516 764 632 737 468 325 406 439 178 73 Maximum Alert Level 4 | . 1 . . . 2 3 3 3 3 2 1 1 3 2 3 2 3 1 3 3 4 3 3 2 3 3 3 2 2 2 2 2 . Low Security (%) 24 | 100 78 100 . 100 68 11 . 4 2 23 29 21 10 . . . . . . . 10 . 5 . . . . . 20 . . 56 100 Level 1 20 | . 21 . . . 15 11 6 13 35 17 70 78 13 76 20 . 23 100 16 1 34 8 15 . 4 . . . 49 54 31 35 . Level 2 34 | . . . . . 15 50 68 42 43 58 . . 35 23 43 100 29 . 35 37 31 31 20 100 23 64 43 100 30 45 68 8 . Level 3 20 | . . . . . . 26 24 39 18 . . . 39 . 35 . 47 . 48 60 7 60 59 . 71 35 56 . . . . . . Level 4 . | . . . . . . . . . . . . . . . . . . . . . 16 . . . . . . . . . . . . Level 5 . | . . . . . . . . . . . . . . . . . . . . . . . . . . . . . . . . . . High Security . | . . . . . . . . . . . . . . . . . . . . . . . . . . . . . . . . . . Max Security . | . . . . . . . . . . . . . . . . . . . . . . . . . . . . . . . . . . Squads Dispatched 46 | . 3 . . . 3 . 2 . 3 3 . 1 . 2 . 2 . . . . . 3 . . . 4 . 4 . 5 . 10 1 Investigation 9 | . 3 . . . 1 . 2 . 1 1 . 1 . . . . . . . . . . . . . . . . . . . . . Extermination 5 | . . . . . . . . . . 1 . . . . . 1 . . . . . . . . . 1 . . . . . 2 . Reinforcement 19 | . . . . . 2 . . . 2 1 . . . 1 . 1 . . . . . 2 . . . 2 . 2 . 1 . 4 1 Assault 3 | . . . . . . . . . . . . . . . . . . . . . . 1 . . . . . . . 2 . . . Garrison 10 | . . . . . . . . . . . . . . 1 . . . . . . . . . . . 1 . 2 . 2 . 4 . Intercept . | . . . . . . . . . . . . . . . . . . . . . . . . . . . . . . . . . . Searches Triggered . | . . . . . . . . . . . . . . . . . . . . . . . . . . . . . . . . . . Construction Impeded 5 | . . . . . 1 . . . . . . . . . . . . . . . . 1 . . . 1 . 1 . . . 1 . Haulers Reinforced 3 | . . . . . . . . . . . . . . 1 . . . . . . . 1 . . . . . 1 . . . . . Active Scanning Responses . | . . . . . . . . . . . . . . . . . . . . . . . . . . . . . . . . . . Cargo Convoy Interrupts . | . . . . . . . . . . . . . . . . . . . . . . . . . . . . . . . . . . Alert ID Control Effect 106 | . . . . . . . . . . . . . . . . . . . . . . 6 . . 7 3 12 11 13 7 17 28 2 Stealth | -11 -10 -10 -10 -9 -8 -8 -8 -8 -8 -7 -7 -7 -7 -6 -6 -6 -6 -5 -5 -5 -5 -4 -4 -3 -3 -2 -2 -2 -2 -1 -1 -1 -1 --------- Run | Yrd Mat Min Exi Min Mat Gar Mat Gar Mat Fac Gar Fac Gar Fac Gar Fac Gar Fac Gar Fac Gar Fac Gar Res Gar Res Gar Res Gar Acc Gar Acc Com Distress Signals 22 | . . . . . 1 . 1 . 2 1 . . . 1 . . . . . . . 4 . . . . . 1 . 3 . 6 2 Communications Jammed 7 | . . . . . . . . . . . . . . . . . . . . . . . . . . 2 . . . 5 . . . Distress Signals 5 | . . . . . . . . . . . . . . . . . . . . . . . . . . . . . . 5 . . . Times Spotted 693 | . 14 6 . 10 30 33 20 34 33 21 12 7 27 12 42 2 22 1 36 8 32 29 43 . 24 11 28 13 24 14 35 46 24 Peak Tracking Total 12 | . 4 3 . 3 8 4 3 6 6 4 3 3 12 3 7 1 10 1 8 3 8 9 8 . 5 4 5 4 5 5 5 6 8 Tactical Retreats 66 | . . . . 1 5 5 . 1 4 3 . 2 6 1 6 1 3 . 12 2 4 . 6 . 1 . 1 . . . . 1 1 Traps | -11 -10 -10 -10 -9 -8 -8 -8 -8 -8 -7 -7 -7 -7 -6 -6 -6 -6 -5 -5 -5 -5 -4 -4 -3 -3 -2 -2 -2 -2 -1 -1 -1 -1 ------- Run | Yrd Mat Min Exi Min Mat Gar Mat Gar Mat Fac Gar Fac Gar Fac Gar Fac Gar Fac Gar Fac Gar Fac Gar Res Gar Res Gar Res Gar Acc Gar Acc Com Traps Triggered 87 | . 2 . . . 1 15 . 3 2 3 . . 5 2 6 2 1 . 1 1 9 . 6 . 5 . 7 . 7 . 2 5 2 Indirectly . | . . . . . . . . . . . . . . . . . . . . . . . . . . . . . . . . . . Trap Hack Attempts 1 | . . . . . . . . . . . . . . . . . 1 . . . . . . . . . . . . . . . . Triggered . | . . . . . . . . . . . . . . . . . . . . . . . . . . . . . . . . . . Disarmed . | . . . . . . . . . . . . . . . . . . . . . . . . . . . . . . . . . . Reprogrammed 10 | . 10 . . . . . . . . . . . . . . . . . . . . . . . . . . . . . . . . Reused 4 | . 4 . . . . . . . . . . . . . . . . . . . . . . . . . . . . . . . . Traps Extracted . | . . . . . . . . . . . . . . . . . . . . . . . . . . . . . . . . . . Installed . | . . . . . . . . . . . . . . . . . . . . . . . . . . . . . . . . . . Triggered 5 | . 4 . . . . . . . . . . . . . . . . . 1 . . . . . . . . . . . . . . Objects Rigged 3 | . . . . . . . . . . . . . . . . . . . . 3 . . . . . . . . . . . . . Exploded 2 | . . . . . . . . . . . . . . . . . . . . 2 . . . . . . . . . . . . . Machines | -11 -10 -10 -10 -9 -8 -8 -8 -8 -8 -7 -7 -7 -7 -6 -6 -6 -6 -5 -5 -5 -5 -4 -4 -3 -3 -2 -2 -2 -2 -1 -1 -1 -1 ---------- Run | Yrd Mat Min Exi Min Mat Gar Mat Gar Mat Fac Gar Fac Gar Fac Gar Fac Gar Fac Gar Fac Gar Fac Gar Res Gar Res Gar Res Gar Acc Gar Acc Com Machines Disabled 52 | . . 1 . . 2 1 1 . . 3 . . . . . . . . . 5 7 3 6 . 6 1 5 . 2 2 5 1 1 Max in Single Turn 4 | . . 1 . . 1 1 1 . . 2 . . . . . . . . . 4 2 . 2 . 1 . 1 . 1 . 1 1 1 Garrison Access 2 | . . . . . . . . . . . . . . . . . . . . . . . . . . . . . . 2 . . . Garrison Relay 25 | . . . . . . 1 . . . . . . . . 1 . . . . . 3 . 3 . 5 . 5 . 2 . 5 . . Phase Generator 1 | . . . . . . . . . . . . . . . . . . . . . 1 . . . . . . . . . . . . Energy Cycler 1 | . . . . . . . . . . . . . . . . . . . . . . . . . . . . . . . . 1 . Machines Repaired . | . . . . . . . . . . . . . . . . . . . . . . . . . . . . . . . . . . Machines Dismantled . | . . . . . . . . . . . . . . . . . . . . . . . . . . . . . . . . . . Machines Sabotaged . | . . . . . . . . . . . . . . . . . . . . . . . . . . . . . . . . . . Overloaded Fab Kills . | . . . . . . . . . . . . . . . . . . . . . . . . . . . . . . . . . . Hacking | -11 -10 -10 -10 -9 -8 -8 -8 -8 -8 -7 -7 -7 -7 -6 -6 -6 -6 -5 -5 -5 -5 -4 -4 -3 -3 -2 -2 -2 -2 -1 -1 -1 -1 --------- Run | Yrd Mat Min Exi Min Mat Gar Mat Gar Mat Fac Gar Fac Gar Fac Gar Fac Gar Fac Gar Fac Gar Fac Gar Res Gar Res Gar Res Gar Acc Gar Acc Com Machines Accessed 98 | . 7 . . . 4 2 9 1 9 6 1 3 3 7 1 4 1 3 2 4 3 3 1 1 3 3 2 5 3 5 2 . . Terminals 78 | . 6 . . . 3 2 6 1 9 5 1 1 3 6 1 3 1 2 2 3 3 2 1 . 3 2 2 2 3 3 2 . . Fabricators 1 | . . . . . . . . . . . . . . . . . . . . . . . . . . . . 1 . . . . . Repair Stations . | . . . . . . . . . . . . . . . . . . . . . . . . . . . . . . . . . . Recycling Units 4 | . 1 . . . . . 2 . . . . 1 . . . . . . . . . . . . . . . . . . . . . Scanalyzers . | . . . . . . . . . . . . . . . . . . . . . . . . . . . . . . . . . . Garrison Access 15 | . . . . . 1 . 1 . . 1 . 1 . 1 . 1 . 1 . 1 . 1 . 1 . 1 . 2 . 2 . . . Total Hacks 239 | . 19 . . . 11 3 22 1 35 17 1 10 4 19 1 11 1 7 5 15 4 12 2 1 4 5 3 10 4 8 4 . . Successful 143 | . 10 . . . 7 2 14 1 20 11 1 7 3 11 1 5 1 3 2 9 3 8 1 1 3 3 2 6 2 4 2 . . Failed 96 | . 9 . . . 4 1 8 . 15 6 . 3 1 8 . 6 . 4 3 6 1 4 1 . 1 2 1 4 2 4 2 . . Catastrophic 11 | . 1 . . . . . . . 3 1 . 1 . 1 . 1 . 1 . 1 . . . . . 1 . . . . . . . Database Lockouts . | . . . . . . . . . . . . . . . . . . . . . . . . . . . . . . . . . . Manual 143 | . 9 . . . 5 . 19 . 32 11 . 7 . 11 . 8 . 4 . 14 . 11 . . . 4 . 6 . 2 . . . Terminals 216 | . 18 . . . 10 3 19 1 35 16 1 8 4 18 1 10 1 6 5 14 4 10 2 . 4 4 3 5 4 6 4 . . Fabricators 3 | . . . . . . . . . . . . . . . . . . . . . . . . . . . . 3 . . . . . Repair Stations . | . . . . . . . . . . . . . . . . . . . . . . . . . . . . . . . . . . Recycling Units 4 | . 1 . . . . . 2 . . . . 1 . . . . . . . . . . . . . . . . . . . . . Scanalyzers . | . . . . . . . . . . . . . . . . . . . . . . . . . . . . . . . . . . Garrison Access 16 | . . . . . 1 . 1 . . 1 . 1 . 1 . 1 . 1 . 1 . 2 . 1 . 1 . 2 . 2 . . . Terminal Hacks 83 | . 8 . . . 5 2 6 1 11 7 1 4 3 6 1 2 1 1 2 4 3 3 1 . 3 . 2 1 2 1 2 . . Record 1 | . . . . . . . . . . . . . . . . . . . . . . . . . . . . 1 . . . . . Part Schematic 1 | . . . . . . . . . . . . . . 1 . . . . . . . . . . . . . . . . . . . Robot Schematic 2 | . . . . . . . . . . 1 . 1 . . . . . . . . . . . . . . . . . . . . . Robot Analysis 9 | . . . . . . . . . 4 . . . . 1 . 2 . 1 . . . . . . . . . . . 1 . . . Prototype ID Bank 3 | . . . . . . . 1 . . 1 . 1 . . . . . . . . . . . . . . . . . . . . . Open Door 3 | . . . . . . . . . . . . . . . . . . . . . 1 . . . 1 . . . 1 . . . . Open DSF 1 | . . . . . . . . . . 1 . . . . . . . . . . . . . . . . . . . . . . . Level Access Points 1 | . 1 . . . . . . . . . . . . . . . . . . . . . . . . . . . . . . . . Branch Access Points 2 | . . . . . . . . . 1 1 . . . . . . . . . . . . . . . . . . . . . . . Emergency Access Points 10 | . . . . . . 1 . 1 . . . . 1 . 1 . . . 1 . 1 . 1 . 1 . 1 . . . 1 . . Terminal Index 4 | . 1 . . . . . 1 . 1 . . . . 1 . . . . . . . . . . . . . . . . . . . Recycling Unit Index 1 | . . . . . 1 . . . . . . . . . . . . . . . . . . . . . . . . . . . . Garrison Index 3 | . . . . . . . . . 1 . . 1 . 1 . . . . . . . . . . . . . . . . . . . Alert Level 2 | . . . . . 1 . 1 . . . . . . . . . . . . . . . . . . . . . . . . . . Unreport Threat 22 | . . . . . 3 . 3 . 4 3 . 1 . 1 . . . . . 4 . 3 . . . . . . . . . . . Locate Traps 1 | . . . . . . . . . . . . . . 1 . . . . . . . . . . . . . . . . . . . Reprogram Traps 6 | . 6 . . . . . . . . . . . . . . . . . . . . . . . . . . . . . . . . Garrison Registry 4 | . . . . . . . . . . . 1 . 1 . . . 1 . 1 . . . . . . . . . . . . . . Patrol Navigation 5 | . . . . . . . . . . . . . 1 . . . . . . . 1 . . . . . 1 . 1 . 1 . . Security Stations 2 | . . . . . . 1 . . . . . . . . . . . . . . . . . . 1 . . . . . . . . Fabricator Hacks 1 | . . . . . . . . . . . . . . . . . . . . . . . . . . . . 1 . . . . . Build 1 | . . . . . . . . . . . . . . . . . . . . . . . . . . . . 1 . . . . . Repair Station Hacks . | . . . . . . . . . . . . . . . . . . . . . . . . . . . . . . . . . . Recycling Unit Hacks . | . . . . . . . . . . . . . . . . . . . . . . . . . . . . . . . . . . Scanalyzer . | . . . . . . . . . . . . . . . . . . . . . . . . . . . . . . . . . . Garrison Access Hacks 16 | . . . . . 1 . 1 . . 1 . 1 . 1 . 1 . 1 . 1 . 2 . 1 . 1 . 2 . 2 . . . Unlock Access 15 | . . . . . 1 . 1 . . 1 . 1 . 1 . 1 . 1 . 1 . 1 . 1 . 1 . 2 . 2 . . . Coupler Status 1 | . . . . . . . . . . . . . . . . . . . . . . 1 . . . . . . . . . . . Unauthorized Hacks 43 | . 2 . . . 1 . 7 . 9 3 . 2 . 4 . 2 . 1 . 4 . 3 . . . 2 . 2 . 1 . . . Terminals 38 | . 1 . . . 1 . 5 . 9 3 . 1 . 4 . 2 . 1 . 4 . 3 . . . 2 . 1 . 1 . . . Assimilate 8 | . . . . . . . 1 . 3 2 . . . 1 . . . . . 1 . . . . . . . . . . . . . Botnet 28 | . 1 . . . 1 . 4 . 6 1 . 1 . 3 . 2 . 1 . 2 . 2 . . . 2 . 1 . 1 . . . Detonate 1 | . . . . . . . . . . . . . . . . . . . . 1 . . . . . . . . . . . . . Operators 1 | . . . . . . . . . . . . . . . . . . . . . . 1 . . . . . . . . . . . Fabricators 1 | . . . . . . . . . . . . . . . . . . . . . . . . . . . . 1 . . . . . Prioritize 1 | . . . . . . . . . . . . . . . . . . . . . . . . . . . . 1 . . . . . Repair Stations . | . . . . . . . . . . . . . . . . . . . . . . . . . . . . . . . . . . Recycling Units 4 | . 1 . . . . . 2 . . . . 1 . . . . . . . . . . . . . . . . . . . . . Tunnel 4 | . 1 . . . . . 2 . . . . 1 . . . . . . . . . . . . . . . . . . . . . Scanalyzers . | . . . . . . . . . . . . . . . . . . . . . . . . . . . . . . . . . . Garrison Access . | . . . . . . . . . . . . . . . . . . . . . . . . . . . . . . . . . . Data Cores Recovered 5 | . . . . . . . 1 . 2 . . . . 1 . . . . . . . . . 1 . . . . . . . . . Used 1 | . . . . . . . . . 1 . . . . . . . . . . . . . . . . . . . . . . . . Hacking Detections 62 | . 5 . . . 3 1 6 . 8 5 1 2 . 4 . 4 . 2 1 3 1 2 . . . 2 2 5 1 4 . . . Full Trace Events 1 | . . . . . . . . . . 1 . . . . . . . . . . . . . . . . . . . . . . . Feedback Events . | . . . . . . . . . . . . . . . . . . . . . . . . . . . . . . . . . . Feedback Blocked . | . . . . . . . . . . . . . . . . . . . . . . . . . . . . . . . . . . Robot Schematics Acquired 2 | . . . . . . . . . . 1 . 1 . . . . . . . . . . . . . . . . . . . . . Robots Built 2 | . . . . . . . . . . . . . . . . . . . . . . . . . . . . 2 . . . . . Authchips 1 | . . . . . . . . . . . . . . . . . . . . . . . . . . . . 1 . . . . . Time 222 | . . . . . . . . . . . . . . . . . . . . . . . . . . . . 222 . . . . . Total Robot Build Rating 18 | . . . . . . . . . . . . . . . . . . . . . . . . . . . . 18 . . . . . Part Schematics Acquired 1 | . . . . . . . . . . . . . . 1 . . . . . . . . . . . . . . . . . . . Parts Built . | . . . . . . . . . . . . . . . . . . . . . . . . . . . . . . . . . . Authchips . | . . . . . . . . . . . . . . . . . . . . . . . . . . . . . . . . . . Time . | . . . . . . . . . . . . . . . . . . . . . . . . . . . . . . . . . . Total Part Build Rating . | . . . . . . . . . . . . . . . . . . . . . . . . . . . . . . . . . . Parts Repaired . | . . . . . . . . . . . . . . . . . . . . . . . . . . . . . . . . . . Time . | . . . . . . . . . . . . . . . . . . . . . . . . . . . . . . . . . . Parts Recycled . | . . . . . . . . . . . . . . . . . . . . . . . . . . . . . . . . . . Recycled Matter . | . . . . . . . . . . . . . . . . . . . . . . . . . . . . . . . . . . Retrieved Matter . | . . . . . . . . . . . . . . . . . . . . . . . . . . . . . . . . . . Retrieved Components . | . . . . . . . . . . . . . . . . . . . . . . . . . . . . . . . . . . Parts Scanalyzed . | . . . . . . . . . . . . . . . . . . . . . . . . . . . . . . . . . . Part Schematics Acquired . | . . . . . . . . . . . . . . . . . . . . . . . . . . . . . . . . . . Parts Damaged . | . . . . . . . . . . . . . . . . . . . . . . . . . . . . . . . . . . Bothacking | -11 -10 -10 -10 -9 -8 -8 -8 -8 -8 -7 -7 -7 -7 -6 -6 -6 -6 -5 -5 -5 -5 -4 -4 -3 -3 -2 -2 -2 -2 -1 -1 -1 -1 ------------ Run | Yrd Mat Min Exi Min Mat Gar Mat Gar Mat Fac Gar Fac Gar Fac Gar Fac Gar Fac Gar Fac Gar Fac Gar Res Gar Res Gar Res Gar Acc Gar Acc Com Used RIF Installer 13 | . . . . . . 1 . 1 . . 1 . 1 . 1 . 1 . 1 . 1 . 1 . 1 . 1 . 1 . 1 . . Coupler Efficiency 1 | . . . . . . . . . . . . . . . 1 . . . . . . . . . . . . . . . . . . Hotswap 1 | . . . . . . . . . . . . . . . . . . . . . 1 . . . . . . . . . . . . Code Merge 1 | . . . . . . . . . . . . . . . . . . . . . . . . . . . . . . . 1 . . Command Fork 2 | . . . . . . . . . . . 1 . . . . . 1 . . . . . . . . . . . . . . . . Signal Jammer 1 | . . . . . . . . . . . . . . . . . . . . . . . 1 . . . . . . . . . . Zone Cloak 1 | . . . . . . . . . . . . . . . . . . . . . . . . . . . . . 1 . . . . Robot Detection 1 | . . . . . . . . 1 . . . . . . . . . . . . . . . . . . . . . . . . . Alert ID Control 1 | . . . . . . . . . . . . . . . . . . . 1 . . . . . . . . . . . . . . Program Shield 1 | . . . . . . . . . . . . . 1 . . . . . . . . . . . . . . . . . . . . Autoassimilate 1 | . . . . . . . . . . . . . . . . . . . . . . . . . 1 . . . . . . . . Crosswire 1 | . . . . . . . . . . . . . . . . . . . . . . . . . . . 1 . . . . . . Robots Hacked 145 | . . . . . . . . . . . . . . 1 . 1 . 1 . . 2 5 10 . 11 7 16 8 14 16 23 21 9 Non-combat 7 | . . . . . . . . . . . . . . 1 . 1 . 1 . . . . . . . . . . . 4 . . . Combat 138 | . . . . . . . . . . . . . . . . . . . . . 2 5 10 . 11 7 16 8 14 12 23 21 9 Autoassimilated 15 | . . . . . . . . . . . . . . . . . . . . . . . . . . 1 3 . 3 5 1 2 . Robot Hacks Applied 132 | . . . . . . . . . . . . . . 1 . 1 . 1 . . 2 6 11 . 11 6 13 8 11 11 22 19 9 no_distress 1 | . . . . . . . . . . . . . . . . 1 . . . . . . . . . . . . . . . . . ignore_parts 2 | . . . . . . . . . . . . . . 1 . . . 1 . . . . . . . . . . . . . . . find_garrison 1 | . . . . . . . . . . . . . . . . . . . . . . . . . . . . 1 . . . . . focus_fire 1 | . . . . . . . . . . . . . . . . . . . . . . . . . . . 1 . . . . . . link_complan 1 | . . . . . . . . . . . . . . . . . . . . . . . . . . 1 . . . . . . . broadcast_data 1 | . . . . . . . . . . . . . . . . . . . . . . . . . . . . . 1 . . . . disrupt_area 1 | . . . . . . . . . . . . . . . . . . . . . . . . . . . . . 1 . . . . spike_heat 4 | . . . . . . . . . . . . . . . . . . . . . . . 3 . . 1 . . . . . . . overload_power 2 | . . . . . . . . . . . . . . . . . . . . . . . . . . . . . . 2 . . . amplify_resonance 16 | . . . . . . . . . . . . . . . . . . . . . 2 2 6 . . 1 2 . 2 . 1 . . disable_weapons 2 | . . . . . . . . . . . . . . . . . . . . . . . . . . . 2 . . . . . . go_dormant 1 | . . . . . . . . . . . . . . . . . . . . . . 1 . . . . . . . . . . . streamctrl_high 2 | . . . . . . . . . . . . . . . . . . . . . . 1 . . . . 1 . . . . . . formatsys_high 96 | . . . . . . . . . . . . . . . . . . . . . . 2 2 . 11 3 7 7 7 8 21 19 9 formatsys_deep 1 | . . . . . . . . . . . . . . . . . . . . . . . . . . . . . . 1 . . . Relay Couplers Released 43 | . . . . . . 1 . . . . . . . . 2 . . . . . 4 . 5 . 10 . 7 . 3 1 10 . . Machine Destruction 43 | . . . . . . 1 . . . . . . . . 2 . . . . . 4 . 5 . 10 . 7 . 3 1 10 . . Attached 18 | . . . . . . . . . . . . . . . . . . . . . 1 1 1 . 3 1 3 . 1 3 3 1 . Crosswired 12 | . . . . . . . . . . . . . . . . . . . . . . . . . . . 3 . 1 . 8 . . Merged Code Value 105 | . . . . . . . . . . . . . . . . . . . . . . . . . . . . . . . 105 . . Fabnet Peak Effective % . | . . . . . . . . . . . . . . . . . . . . . . . . . . . . . . . . . . Robots Rewired 54 | . . . . . . . . 1 1 1 1 1 9 2 1 . . . 1 1 8 2 14 . 4 . . . 2 . 3 . 2 Allies Hacked 2 | . . . . . . . . . . . . . . . . . . . . . . 1 . . 1 . . . . . . . . Hacks Repelled . | . . . . . . . . . . . . . . . . . . . . . . . . . . . . . . . . . . Allies | -11 -10 -10 -10 -9 -8 -8 -8 -8 -8 -7 -7 -7 -7 -6 -6 -6 -6 -5 -5 -5 -5 -4 -4 -3 -3 -2 -2 -2 -2 -1 -1 -1 -1 -------- Run | Yrd Mat Min Exi Min Mat Gar Mat Gar Mat Fac Gar Fac Gar Fac Gar Fac Gar Fac Gar Fac Gar Fac Gar Res Gar Res Gar Res Gar Acc Gar Acc Com Total Allies 214 | . . . . . . . . 1 1 2 1 1 9 2 1 . . . 1 1 10 7 16 . 16 6 16 12 15 16 38 28 14 Largest Group 32 | . . . . . . . . 1 2 2 2 2 8 8 1 . . . 1 1 8 8 9 9 14 13 18 22 23 27 29 32 7 Highest-Rated Group 1842 | . . . . . . . . 15 30 40 42 25 265 293 37 . . . 49 47 414 388 601 601 925 962 987 1322 1453 1808 1728 1842 384 Highest-Rated Ally 202 | . . . . . . . . 15 15 30 32 16 80 85 37 . . . 49 47 116 62 148 148 148 148 69 69 148 178 178 178 202 Total Orders 32 | . . . . . . . . . 2 2 4 . 1 . . . . . . . 7 2 . . 3 . 2 . . 6 1 . 2 STAY 19 | . . . . . . . . . 1 1 2 . 1 . . . . . . . 4 1 . . 2 . 1 . . 3 1 . 2 FOLLOW 13 | . . . . . . . . . 1 1 2 . . . . . . . . . 3 1 . . 1 . 1 . . 3 . . . Ally Attacks 1205 | . . . . . . . . . 4 . 4 . 23 34 2 . . . 9 . 63 72 57 . 81 38 79 82 90 79 159 248 81 Total Damage 46092 | . . . . . . . . . 89 . 71 . 361 734 69 . . . 214 . 2099 2306 2184 . 2472 1896 3505 3674 3401 2657 6564 9581 4215 Kills 173 | . . . . . . . . . 1 . . . 5 4 1 . . . . . 11 17 11 . 14 7 12 11 13 9 20 34 3 Allies Corrupted 12 | . . . . . . . . . . . . . 1 . . . . . . . . . . . 1 . . . . 2 1 7 . Allies Melted 2 | . . . . . . . . . . . . . . . . . . . . . . . . . . . 1 . . . 1 . . Intel | -11 -10 -10 -10 -9 -8 -8 -8 -8 -8 -7 -7 -7 -7 -6 -6 -6 -6 -5 -5 -5 -5 -4 -4 -3 -3 -2 -2 -2 -2 -1 -1 -1 -1 ------- Run | Yrd Mat Min Exi Min Mat Gar Mat Gar Mat Fac Gar Fac Gar Fac Gar Fac Gar Fac Gar Fac Gar Fac Gar Res Gar Res Gar Res Gar Acc Gar Acc Com Robot Analysis Total 9 | . . . . . . . . . 4 . . . . 1 . 2 . 1 . . . . . . . . . . . 1 . . . Derelict Logs Recovered 2 | . . 1 . 1 . . . . . . . . . . . . . . . . . . . . . . . . . . . . . Drone Launches . | . . . . . . . . . . . . . . . . . . . . . . . . . . . . . . . . . . Drone Recoveries . | . . . . . . . . . . . . . . . . . . . . . . . . . . . . . . . . . . Exploration | -11 -10 -10 -10 -9 -8 -8 -8 -8 -8 -7 -7 -7 -7 -6 -6 -6 -6 -5 -5 -5 -5 -4 -4 -3 -3 -2 -2 -2 -2 -1 -1 -1 -1 ------------- Run | Yrd Mat Min Exi Min Mat Gar Mat Gar Mat Fac Gar Fac Gar Fac Gar Fac Gar Fac Gar Fac Gar Fac Gar Res Gar Res Gar Res Gar Acc Gar Acc Com Turns Passed 18111 | 51 745 713 257 573 923 1357 1021 749 763 551 275 197 608 262 594 275 238 118 417 263 946 440 760 49 608 267 536 352 572 446 651 1055 479 Spaces Moved 23171 | 44 596 646 258 514 591 1237 836 693 884 803 277 340 782 559 594 758 244 382 391 522 1286 853 695 75 811 384 836 512 665 895 942 2513 753 Core 6 | 6 . . . . . . . . . . . . . . . . . . . . . . . . . . . . . . . . . Treads . | . . . . . . . . . . . . . . . . . . . . . . . . . . . . . . . . . . Legs . | . . . . . . . . . . . . . . . . . . . . . . . . . . . . . . . . . . Wheels 3367 | 38 596 646 258 514 591 724 . . . . . . . . . . . . . . . . . . . . . . . . . . . Hover 19798 | . . . . . . 513 836 693 884 803 277 340 782 559 594 758 244 382 391 522 1286 853 695 75 811 384 836 512 665 895 942 2513 753 Flight . | . . . . . . . . . . . . . . . . . . . . . . . . . . . . . . . . . . Fastest Speed 30 | 50 100 100 100 100 100 38 35 35 35 35 35 35 33 33 33 30 30 30 30 30 30 30 30 30 30 30 30 30 30 30 30 30 30 Average Speed 42 | 97 100 100 100 100 110 84 37 35 35 35 35 35 34 33 33 31 30 30 30 30 30 30 30 30 30 30 30 30 30 30 30 30 30 Slowest Speed 150 | 150 100 100 100 100 120 125 38 35 35 35 35 35 35 33 33 35 30 30 30 30 30 30 30 30 30 30 30 30 30 30 30 35 102 Overloaded Moves . | . . . . . . . . . . . . . . . . . . . . . . . . . . . . . . . . . . Propulsion Burnouts . | . . . . . . . . . . . . . . . . . . . . . . . . . . . . . . . . . . Robots Hopped . | . . . . . . . . . . . . . . . . . . . . . . . . . . . . . . . . . . Cave-ins Triggered . | . . . . . . . . . . . . . . . . . . . . . . . . . . . . . . . . . . Exploration Rate (%) 46 | 4 89 97 61 98 33 91 63 57 68 16 39 12 61 15 58 24 33 9 34 12 78 19 71 3 85 12 91 14 75 20 84 43 22 Regions Visited 33 Branch Regions 4 Pre-discovered Areas 4 | . 1 . . . . . 2 . . . . 1 . . . . . . . . . . . . . . . . . . . . . Known Exits Taken 16 | . . . . 1 1 . 1 . 1 1 . 1 . 1 . 1 . 1 . 1 . 1 . 1 . 1 . 1 . 1 . 1 . Unknown Exits Taken 4 | 1 1 1 1 . . . . . . . . . . . . . . . . . . . . . . . . . . . . . . Scrap Searched 5 | . . 3 . 2 . . . . . . . . . . . . . . . . . . . . . . . . . . . . . Spaces Dug 4 | . . . . . . . . 2 . . . 2 . . . . . . . . . . . . . . . . . . . . . Terrain Destroyed 468 | . . 2 . 3 48 29 23 5 4 43 3 2 . 9 23 . 14 . 8 65 109 . 20 . . . . . . 26 4 23 5 Melee 2 | . . . . . . . . . . . . 2 . . . . . . . . . . . . . . . . . . . . . Projectile 5 | . . . . . . . . 5 . . . . . . . . . . . . . . . . . . . . . . . . . AOE 447 | . . 2 . 3 48 29 23 . 4 42 . . . 9 22 . 12 . 7 65 104 . 20 . . . . . . 26 4 23 4 Terrain Rammed . | . . . . . . . . . . . . . . . . . . . . . . . . . . . . . . . . . . Walls Destroyed . | . . . . . . . . . . . . . . . . . . . . . . . . . . . . . . . . . . Machines Disabled . | . . . . . . . . . . . . . . . . . . . . . . . . . . . . . . . . . . Actions | -11 -10 -10 -10 -9 -8 -8 -8 -8 -8 -7 -7 -7 -7 -6 -6 -6 -6 -5 -5 -5 -5 -4 -4 -3 -3 -2 -2 -2 -2 -1 -1 -1 -1 --------- Run | Yrd Mat Min Exi Min Mat Gar Mat Gar Mat Fac Gar Fac Gar Fac Gar Fac Gar Fac Gar Fac Gar Fac Gar Res Gar Res Gar Res Gar Acc Gar Acc Com Total 29012 | 49 692 696 257 549 766 1415 1471 1036 1235 974 365 387 991 605 829 782 330 384 554 591 1645 991 1107 98 1092 501 1060 698 982 1054 1172 2749 905 Wait 2881 | . 57 33 . 20 96 17 579 198 268 60 13 10 48 4 28 9 13 . 72 23 142 97 192 23 133 76 66 151 155 123 33 106 36 Move 23129 | 43 595 645 257 513 590 1236 835 692 883 802 276 339 780 558 592 757 243 381 389 521 1284 852 693 74 809 383 834 511 663 894 940 2512 753 Hop . | . . . . . . . . . . . . . . . . . . . . . . . . . . . . . . . . . . Pick Up 18 | . . . . . . . . 1 . . . . . . . . . . . . 3 . 3 . 1 . 2 . 2 . 6 . . Fast Attach 43 | 6 4 . . 2 2 2 1 3 . 1 . 1 1 1 . 3 . . . . 3 . 2 . . . . . . . 2 4 5 Attach 8 | . . . . . . . . . . 1 . . . . . . . . . . . 1 . . 1 1 . 1 1 1 . 1 . Detach 1 | . . . . . . . . . . 1 . . . . . . . . . . . . . . . . . . . . . . . Swap 57 | . 2 2 . 1 6 9 . 5 2 1 1 . 3 . 2 3 . 2 . 1 . . . . 4 1 3 1 . 2 2 1 3 Drop 27 | . . . . 1 5 3 . 2 2 . . . 3 . . 1 . . . . 2 . 1 . 2 . 1 . . . 2 2 . Fire 1595 | . 26 8 . 12 49 70 34 82 52 50 51 22 72 16 92 8 46 . 71 27 115 33 117 1 86 30 61 19 48 27 125 79 66 Melee 19 | . . . . . . . . . . . . 2 . 4 1 1 . 1 1 1 8 . . . . . . . . . . . . Ram 1 | . . . . . . . 1 . . . . . . . . . . . . . . . . . . . . . . . . . . Kick . | . . . . . . . . . . . . . . . . . . . . . . . . . . . . . . . . . . Crush . | . . . . . . . . . . . . . . . . . . . . . . . . . . . . . . . . . . Escape Stasis 416 | . . . . . . 56 . 9 . 21 . . 26 13 52 . 6 . 7 . 27 . 36 . 20 . 65 . 65 . 13 . . Rewire 167 | . . . . . . . . 1 9 10 3 10 32 . . . . . . . 4 3 17 . 8 3 8 6 7 4 14 12 16 Trap 1 | . . . . . . . . . . . . . . . . . 1 . . . . . . . . . . . . . . . . Miscellaneous 649 | . 8 8 . . 18 22 21 43 19 27 21 3 26 9 62 . 21 . 14 18 57 5 46 . 28 7 20 9 41 3 35 32 26 Route ------- -11/Scrapyard -10/Materials (discovered 5 exits: *Mat x3 / [*Min x2]) -10/Mines (discovered 3 exits: *Mat x2 / [*Exi]) -10/Exiles -9/Mines (discovered 2 exits: *Mat x2) -8/Materials -8/Garrison (discovered 3 exits: *Mat x3) -8/Materials (discovered 2 exits: *Fac / Gar) -8/Garrison (discovered 3 exits: *Fac x2 / *Mat) -8/Materials -7/Factory (discovered 3 exits: *Low x2 / Gar) -7/Garrison (discovered 4 exits: *Fac x4) -7/Factory (discovered 4 exits: *Fac x2 / *Low / Gar) -7/Garrison (discovered 3 exits: *Fac x3) -6/Factory -6/Garrison -6/Factory -6/Garrison (discovered 4 exits: *Fac x3 / [Fac]) -5/Factory -5/Garrison (discovered 3 exits: *Fac x3) -5/Factory (discovered 2 exits: *Upp / Gar) -5/Garrison (discovered 3 exits: *Fac x3) -4/Factory -4/Garrison -3/Research -3/Garrison (discovered 3 exits: *Res x3) -2/Research (discovered 2 exits: *Acc / Gar) -2/Garrison (discovered 3 exits: *Res x3) -2/Research (discovered 2 exits: Gar / Gar) -2/Garrison (discovered 3 exits: *Acc x3) -1/Access -1/Garrison (discovered 2 exits: *Acc x2) -1/Access -1/Command History --------- Turn | Location | Event 1 | -11/Scrapyard | Upgraded with Power slot (x1) 1 | -11/Scrapyard | Upgraded with Propulsion slot (x1) 1 | -11/Scrapyard | Upgraded with Utility slot (x1) 1 | -11/Scrapyard | Upgraded with Weapon slot (x1) 35 | -11/Scrapyard | Discovered new exit (range 12) 52 | -11/Scrapyard | Entered Materials 157 | -10/Materials | Upgraded with Power slot (x1) 157 | -10/Materials | Upgraded with Utility slot (x1) 310 | -10/Materials | Build established: Mutant 348 | -10/Materials | Discovered new exit (range 15) 463 | -10/Materials | Discovered new exit (range 15) 529 | -10/Materials | Discovered new exit (range 3) 540 | -10/Materials | Identified exit to Materials 579 | -10/Materials | Discovered new exit (range 14) 622 | -10/Materials | Reached level 2 797 | -10/Materials | Entered Mines 823 | -10/Mines | Learned Materials terminal intel 904 | -10/Mines | Discovered exit to Materials (range 7) 956 | -10/Mines | Discovered exit to Materials (range 7) 1110 | -10/Mines | Deemed a non-threat by the Exiles lab entrance 1110 | -10/Mines | Discovered new exit (range 5) 1326 | -10/Mines | Found a damaged Exp. Sensor Array with a note attached 1328 | -10/Mines | Found Prototype Device 1328 | -10/Mines | Identified Exp. Sensor Array 1395 | -10/Mines | Reached level 3 1510 | -10/Mines | Entered Exiles 1535 | -10/Exiles | Met 8R-AWN 1552 | -10/Exiles | Met EX-HEX 1583 | -10/Exiles | Met EX-BIN 1612 | -10/Exiles | Met EX-DEC 1649 | -10/Exiles | Visited The Gauntlet 1752 | -10/Exiles | Discovered new exit (range 15) 1767 | -10/Exiles | Entered Mines 1780 | -9/Mines | Reached level 4 1948 | -9/Mines | Assembled infested the area 1953 | -9/Mines | Assisted by a Guerilla fighting off Assembled 1967 | -9/Mines | Received a Rocket Launcher from a helpful Derelict 1970 | -9/Mines | Upgraded with Weapon slot (x1) 2000 | -9/Mines | Identified exit to Materials 2100 | -9/Mines | Upgraded with Utility slot (x1) 2330 | -9/Mines | Discovered exit to Materials (range 4) 2340 | -9/Mines | Entered Materials 2341 | -8/Materials | Loaded intel: 12 terminal locations 2342 | -8/Materials | Reached level 5 2342 | -8/Materials | Reached level 6 2412 | -8/Materials | Build established: Skirmisher 2711 | -8/Materials | Reached level 7 2926 | -8/Materials | Destroyed 7 combat bots 2944 | -8/Materials | Reached level 8 3262 | -8/Materials | Identified exit to Garrison 3263 | -8/Materials | Entered Garrison 3302 | -8/Garrison | Reached level 9 3362 | -8/Garrison | Upgraded with Utility slot (x1) 3403 | -8/Garrison | Triggered checkpoint 3465 | -8/Garrison | Triggered checkpoint 3612 | -8/Garrison | Reached level 10 3646 | -8/Garrison | Discovered new exit (range 9) 3670 | -8/Garrison | Build established: Hacker-Gunner 3689 | -8/Garrison | Identified exit to Materials 3741 | -8/Garrison | Triggered checkpoint 3894 | -8/Garrison | Discovered exit to Materials (range 10) 3979 | -8/Garrison | Triggered checkpoint 4009 | -8/Garrison | Discovered exit to Materials (range 11) 4026 | -8/Garrison | Learned Materials security intel 4031 | -8/Garrison | Triggered checkpoint 4133 | -8/Garrison | Triggered checkpoint 4397 | -8/Garrison | Triggered checkpoint 4471 | -8/Garrison | Upgraded with Propulsion slot (x1) 4599 | -8/Garrison | Installed Relay Interface Framework 4599 | -8/Garrison | Reached level 11 4620 | -8/Garrison | Entered Materials 5442 | -8/Materials | Reached level 12 5459 | -8/Materials | Discovered new exit (range 9) 5604 | -8/Materials | Upgraded with Propulsion slot (x1) 5641 | -8/Materials | Identified exit to Garrison 5641 | -8/Materials | Entered Garrison 5715 | -8/Garrison | Triggered checkpoint 5754 | -8/Garrison | Triggered checkpoint 5833 | -8/Garrison | Discovered new exit (range 15) 5837 | -8/Garrison | Triggered checkpoint 5932 | -8/Garrison | Destroyed 8 combat bots 6066 | -8/Garrison | Expanded RIF knowledge: Robot Detection 6093 | -8/Garrison | Triggered checkpoint 6121 | -8/Garrison | Triggered checkpoint 6135 | -8/Garrison | Reached level 13 6193 | -8/Garrison | Discovered new exit (range 10) 6196 | -8/Garrison | Spotted B-75 Beast 6265 | -8/Garrison | Destroyed B-75 Beast 6315 | -8/Garrison | Upgraded with Utility slot (x1) 6320 | -8/Garrison | Found Imp. Powered Armor 6345 | -8/Garrison | Triggered checkpoint 6347 | -8/Garrison | Discovered new exit (range 6) 6358 | -8/Garrison | Identified exit to Factory 6382 | -8/Garrison | Identified exit to Materials 6390 | -8/Garrison | Entered Materials 6390 | -8/Materials | Accompanied by 1 ally 6524 | -8/Materials | Discovered exit to Factory (range 19) 6545 | -8/Materials | Build established: Hacker-Scout 7153 | -8/Materials | Entered Factory 7153 | -7/Factory | Accompanied by 1 ally 7155 | -7/Factory | Reached level 14 7182 | -7/Factory | Identified exit to Lower Caves 7284 | -7/Factory | Reached level 15 7432 | -7/Factory | Upgraded with Utility slot (x1) 7703 | -7/Factory | Identified exit to Garrison 7704 | -7/Factory | Entered Garrison 7704 | -7/Garrison | Accompanied by 1 ally 7707 | -7/Garrison | Discovered new exit (range 60) 7707 | -7/Garrison | Discovered new exit (range 100) 7707 | -7/Garrison | Discovered new exit (range 43) 7707 | -7/Garrison | Discovered new exit (range 73) 7774 | -7/Garrison | Triggered checkpoint 7790 | -7/Garrison | Expanded RIF knowledge: Command Fork 7792 | -7/Garrison | Triggered checkpoint 7798 | -7/Garrison | Triggered checkpoint 7816 | -7/Garrison | Reached level 16 7890 | -7/Garrison | Triggered checkpoint 7939 | -7/Garrison | Identified exit to Factory 7979 | -7/Garrison | Entered Factory 7979 | -7/Factory | Accompanied by 1 ally 8042 | -7/Factory | Discovered new exit (range 8) 8044 | -7/Factory | Identified exit to Factory 8079 | -7/Factory | Discovered exit to Lower Caves (range 18) 8136 | -7/Factory | Discovered exit to Factory (range 8) 8170 | -7/Factory | Identified exit to Garrison 8176 | -7/Factory | Entered Garrison 8176 | -7/Garrison | Accompanied by 2 allies 8198 | -7/Garrison | Triggered checkpoint 8319 | -7/Garrison | Destroyed 7 combat bots 8338 | -7/Garrison | Triggered checkpoint 8356 | -7/Garrison | Triggered checkpoint 8432 | -7/Garrison | Discovered exit to Factory (range 17) 8576 | -7/Garrison | Spotted B-75 Beast 8604 | -7/Garrison | Rewired B-75 Beast 8636 | -7/Garrison | Triggered checkpoint 8644 | -7/Garrison | Expanded RIF knowledge: Program Shield 8690 | -7/Garrison | Discovered exit to Factory (range 14) 8723 | -7/Garrison | Discovered exit to Factory (range 43) 8723 | -7/Garrison | Discovered exit to Factory (range 26) 8723 | -7/Garrison | Discovered exit to Factory (range 45) 8784 | -7/Garrison | Entered Factory 8784 | -6/Factory | Accompanied by 6 allies 8786 | -6/Factory | Reached level 17 8813 | -6/Factory | Reached level 18 8871 | -6/Factory | Spotted B-75 Beast 8886 | -6/Factory | Rewired B-75 Beast 9012 | -6/Factory | Garrison activated, responded to threat 9046 | -6/Factory | Identified exit to Garrison 9046 | -6/Factory | Entered Garrison 9071 | -6/Garrison | Lost 5 allies 9160 | -6/Garrison | Triggered checkpoint 9238 | -6/Garrison | Discovered new exit (range 10) 9240 | -6/Garrison | Identified exit to Factory 9243 | -6/Garrison | Expanded RIF knowledge: Coupler Efficiency 9258 | -6/Garrison | Triggered checkpoint 9302 | -6/Garrison | Spotted Striker 9303 | -6/Garrison | Spotted Striker 9346 | -6/Garrison | Destroyed Striker 9347 | -6/Garrison | Garrison Relay disabled 9357 | -6/Garrison | Core integrity fell below 50% 9371 | -6/Garrison | Destroyed Striker 9420 | -6/Garrison | Triggered checkpoint 9422 | -6/Garrison | Reached level 19 9504 | -6/Garrison | Destroyed 7 combat bots 9601 | -6/Garrison | Triggered checkpoint 9640 | -6/Garrison | Entered Factory 9766 | -6/Factory | Upgraded with Propulsion slot (x1) 9773 | -6/Factory | Upgraded with Utility slot (x1) 9915 | -6/Factory | Identified exit to Garrison 9915 | -6/Factory | Entered Garrison 9925 | -6/Garrison | Triggered checkpoint 9962 | -6/Garrison | Discovered new exit (range 53) 9962 | -6/Garrison | Discovered new exit (range 45) 9962 | -6/Garrison | Discovered new exit (range 55) 9962 | -6/Garrison | Discovered new exit (range 32) 10076 | -6/Garrison | Destroyed 10 combat bots 10129 | -6/Garrison | Triggered checkpoint 10142 | -6/Garrison | Expanded RIF knowledge: Command Fork 10153 | -6/Garrison | Identified exit to Factory 10153 | -6/Garrison | Entered Factory 10155 | -5/Factory | Reached level 20 10271 | -5/Factory | Identified exit to Garrison 10271 | -5/Factory | Entered Garrison 10273 | -5/Garrison | Reached level 21 10286 | -5/Garrison | Heavy support dispatched to Factory 10293 | -5/Garrison | Triggered checkpoint 10331 | -5/Garrison | Spotted B-75 Beast 10450 | -5/Garrison | Core integrity fell below 50% 10495 | -5/Garrison | Triggered checkpoint 10526 | -5/Garrison | Destroyed B-75 Beast 10536 | -5/Garrison | Heavy support dispatched to Factory 10599 | -5/Garrison | Triggered checkpoint 10662 | -5/Garrison | Expanded RIF knowledge: Alert ID Control 10683 | -5/Garrison | Discovered new exit (range 66) 10683 | -5/Garrison | Discovered new exit (range 12) 10683 | -5/Garrison | Discovered new exit (range 43) 10687 | -5/Garrison | Identified exit to Factory 10688 | -5/Garrison | Entered Factory 10780 | -5/Factory | Discovered new exit (range 5) 10782 | -5/Factory | Identified exit to Upper Caves 10786 | -5/Factory | Reached level 22 10951 | -5/Factory | Identified exit to Garrison 10951 | -5/Factory | Entered Garrison 10951 | -5/Garrison | Accompanied by 1 ally 10970 | -5/Garrison | Spotted B-75 Beast 11011 | -5/Garrison | Rewired B-75 Beast 11044 | -5/Garrison | Spotted B-90 Cyclops 11049 | -5/Garrison | Triggered checkpoint 11106 | -5/Garrison | Discovered new exit (range 11) 11109 | -5/Garrison | Identified exit to Factory 11148 | -5/Garrison | Rewired B-86 Titan 11158 | -5/Garrison | Allies destroyed B-90 Cyclops 11293 | -5/Garrison | Triggered checkpoint 11416 | -5/Garrison | Spotted B-75 Beast 11416 | -5/Garrison | Spotted B-75 Beast 11425 | -5/Garrison | Discovered exit to Factory (range 17) 11427 | -5/Garrison | Triggered checkpoint 11490 | -5/Garrison | Destroyed B-75 Beast 11519 | -5/Garrison | Rewired B-75 Beast 11606 | -5/Garrison | Garrison Relay disabled 11615 | -5/Garrison | Upgraded with Utility slot (x1) 11660 | -5/Garrison | Found embedded Infiltrators 11671 | -5/Garrison | Phase Generator disabled 11694 | -5/Garrison | Triggered checkpoint 11730 | -5/Garrison | Triggered checkpoint 11732 | -5/Garrison | Destroyed 7 combat bots 11745 | -5/Garrison | Garrison Relay disabled 11745 | -5/Garrison | Reached level 23 11754 | -5/Garrison | Expanded RIF knowledge: Hotswap 11784 | -5/Garrison | Discovered exit to Factory (range 11) 11810 | -5/Garrison | Garrison Relay disabled 11843 | -5/Garrison | Triggered checkpoint 11897 | -5/Garrison | Entered Factory 11897 | -4/Factory | Accompanied by 5 allies 12033 | -4/Factory | Reached level 24 12043 | -4/Factory | Upgraded with Utility slot (x1) 12121 | -4/Factory | Build established: Bothacker-Scout 12147 | -4/Factory | First assault squad dispatched 12283 | -4/Factory | Spotted B-86 Titan 12325 | -4/Factory | Lost 10 allies 12337 | -4/Factory | Identified exit to Garrison 12337 | -4/Factory | Entered Garrison 12341 | -4/Garrison | Triggered checkpoint 12407 | -4/Garrison | Core integrity fell below 50% 12467 | -4/Garrison | Garrison Relay disabled 12467 | -4/Garrison | Reached level 25 12469 | -4/Garrison | Triggered checkpoint 12483 | -4/Garrison | Spotted B-86 Titan 12484 | -4/Garrison | Triggered checkpoint 12489 | -4/Garrison | Triggered checkpoint 12590 | -4/Garrison | Allies destroyed B-86 Titan 12632 | -4/Garrison | Spotted B-86 Titan 12633 | -4/Garrison | Rewired B-90 Cyclops 12644 | -4/Garrison | Allies destroyed B-86 Titan 12672 | -4/Garrison | Rewired B-86 Titan 12726 | -4/Garrison | Garrison Relay disabled 12732 | -4/Garrison | Triggered checkpoint 12760 | -4/Garrison | Discovered new exit (range 11) 12797 | -4/Garrison | Garrison Relay disabled 12810 | -4/Garrison | Expanded RIF knowledge: Signal Jamming 12876 | -4/Garrison | Lost 3 allies 12929 | -4/Garrison | Identified exit to Research 13017 | -4/Garrison | Build established: Botlord-Scout 13097 | -4/Garrison | Entered Research 13097 | -3/Research | Accompanied by 9 allies 13099 | -3/Research | Reached level 26 13099 | -3/Research | Reached level 27 13122 | -3/Research | Identified exit to Garrison 13146 | -3/Research | Entered Garrison 13146 | -3/Garrison | Accompanied by 9 allies 13146 | -3/Garrison | Spotted B-86 Titan 13148 | -3/Garrison | Rewired B-86 Titan 13149 | -3/Garrison | Rewired B-75 Beast 13156 | -3/Garrison | Allies destroyed B-86 Titan 13176 | -3/Garrison | Triggered checkpoint 13179 | -3/Garrison | Garrison Relay disabled 13182 | -3/Garrison | Upgraded with Utility slot (x1) 13322 | -3/Garrison | Triggered checkpoint 13330 | -3/Garrison | Triggered checkpoint 13338 | -3/Garrison | P-80 Master assimilated allied Rainmaker 7b 13339 | -3/Garrison | P-80 Master assimilated allied Rainmaker 7d 13342 | -3/Garrison | Reached level 28 13365 | -3/Garrison | Lost 3 allies 13370 | -3/Garrison | Discovered new exit (range 12) 13372 | -3/Garrison | Triggered checkpoint 13381 | -3/Garrison | Triggered checkpoint 13394 | -3/Garrison | Expanded RIF knowledge: Autoassimilate 13447 | -3/Garrison | Lost 6 allies 13466 | -3/Garrison | Triggered checkpoint 13509 | -3/Garrison | Learned Research security intel 13510 | -3/Garrison | Triggered checkpoint 13525 | -3/Garrison | Garrison Relay disabled 13570 | -3/Garrison | Discovered new exit (range 11) 13601 | -3/Garrison | Discovered new exit (range 13) 13616 | -3/Garrison | Triggered checkpoint 13623 | -3/Garrison | Garrison Relay disabled 13634 | -3/Garrison | Garrison Relay disabled 13663 | -3/Garrison | Identified exit to Research 13754 | -3/Garrison | Entered Research 13754 | -2/Research | Accompanied by 11 allies 13756 | -2/Research | Reached level 29 13757 | -2/Research | Upgraded with Utility slot (x1) 13853 | -2/Research | Discovered new exit (range 6) 13869 | -2/Research | Reached level 30 13870 | -2/Research | Identified exit to Access 14005 | -2/Research | Identified exit to Garrison 14021 | -2/Research | Entered Garrison 14021 | -2/Garrison | Accompanied by 7 allies 14029 | -2/Garrison | Triggered checkpoint 14075 | -2/Garrison | Spotted B-90 Cyclops 14076 | -2/Garrison | Triggered checkpoint 14122 | -2/Garrison | Allies destroyed B-90 Cyclops 14126 | -2/Garrison | Triggered checkpoint 14139 | -2/Garrison | Triggered checkpoint 14139 | -2/Garrison | Triggered checkpoint 14203 | -2/Garrison | Discovered new exit (range 17) 14205 | -2/Garrison | Triggered checkpoint 14242 | -2/Garrison | Garrison Relay disabled 14253 | -2/Garrison | Garrison Relay disabled 14257 | -2/Garrison | Triggered checkpoint 14293 | -2/Garrison | Discovered new exit (range 17) 14300 | -2/Garrison | Identified exit to Research 14325 | -2/Garrison | Discovered exit to Research (range 17) 14331 | -2/Garrison | Triggered checkpoint 14335 | -2/Garrison | Garrison Relay disabled 14402 | -2/Garrison | Lost 4 allies 14404 | -2/Garrison | Garrison Relay disabled 14423 | -2/Garrison | Expanded RIF knowledge: Crosswire 14423 | -2/Garrison | Reached level 31 14479 | -2/Garrison | Garrison Relay disabled 14483 | -2/Garrison | Triggered checkpoint 14557 | -2/Garrison | Entered Research 14557 | -2/Research | Accompanied by 16 allies 14589 | -2/Research | Spotted B-90 Cyclops 14643 | -2/Research | Allies destroyed B-90 Cyclops 14732 | -2/Research | Spotted B-90 Cyclops 14744 | -2/Research | Identified exit to Garrison 14745 | -2/Research | Garrison activated, responded to threat 14765 | -2/Research | Fabricated H-88 Terminator? 14904 | -2/Research | Identified exit to Garrison 14909 | -2/Research | Entered Garrison 14909 | -2/Garrison | Accompanied by 20 allies 14924 | -2/Garrison | Spotted B-90 Cyclops 14935 | -2/Garrison | Triggered checkpoint 15007 | -2/Garrison | Allies destroyed B-90 Cyclops 15017 | -2/Garrison | Triggered checkpoint 15019 | -2/Garrison | Build established: Commander-Scout 15027 | -2/Garrison | Triggered checkpoint 15035 | -2/Garrison | Lost 8 allies 15089 | -2/Garrison | Triggered checkpoint 15090 | -2/Garrison | Garrison Relay disabled 15134 | -2/Garrison | Core integrity fell below 50% 15154 | -2/Garrison | Lost 4 allies 15173 | -2/Garrison | Discovered exit to Access (range 12) 15187 | -2/Garrison | Triggered checkpoint 15209 | -2/Garrison | Rewired B-90 Cyclops 15215 | -2/Garrison | Discovered exit to Access (range 11) 15236 | -2/Garrison | Garrison Relay disabled 15249 | -2/Garrison | Triggered checkpoint 15276 | -2/Garrison | Expanded RIF knowledge: Zone Cloak 15303 | -2/Garrison | Discovered exit to Access (range 12) 15307 | -2/Garrison | Triggered checkpoint 15326 | -2/Garrison | Rescued a captive Derelict 15330 | -2/Garrison | Rescued a captive Derelict 15481 | -2/Garrison | Entered Access 15481 | -1/Access | Accompanied by 20 allies 15481 | -1/Access | Spotted B-99 Colossus 15483 | -1/Access | Reached level 32 15491 | -1/Access | Allies destroyed B-99 Colossus 15492 | -1/Access | Upgraded with Utility slot (x1) 15555 | -1/Access | Reached level 33 15616 | -1/Access | Assimilated ARC 10a with formatsys_deep 15724 | -1/Access | Identified exit to Garrison 15800 | -1/Access | Garrison activated, responded to threat 15848 | -1/Access | Spotted B-99 Colossus 15909 | -1/Access | Identified exit to Garrison 15927 | -1/Access | Entered Garrison 15927 | -1/Garrison | Accompanied by 16 allies 15965 | -1/Garrison | Found embedded Infiltrators 15971 | -1/Garrison | Spotted B-99 Colossus 15983 | -1/Garrison | Triggered checkpoint 15994 | -1/Garrison | Garrison Relay disabled 16022 | -1/Garrison | Reached level 34 16027 | -1/Garrison | Triggered checkpoint 16048 | -1/Garrison | Lost 6 allies 16048 | -1/Garrison | Triggered checkpoint 16051 | -1/Garrison | Triggered checkpoint 16064 | -1/Garrison | Allies destroyed B-99 Colossus 16094 | -1/Garrison | Lost 3 allies 16108 | -1/Garrison | Garrison Relay disabled 16113 | -1/Garrison | Triggered checkpoint 16129 | -1/Garrison | Garrison Relay disabled 16135 | -1/Garrison | Triggered checkpoint 16183 | -1/Garrison | Triggered checkpoint 16247 | -1/Garrison | Garrison Relay disabled 16273 | -1/Garrison | Expanded RIF knowledge: Code Merge 16284 | -1/Garrison | Lost 4 allies 16305 | -1/Garrison | Discovered new exit (range 13) 16308 | -1/Garrison | Identified exit to Access 16404 | -1/Garrison | Discovered exit to Access (range 12) 16407 | -1/Garrison | Spotted B-99 Colossus 16415 | -1/Garrison | Triggered checkpoint 16449 | -1/Garrison | Triggered checkpoint 16489 | -1/Garrison | Allies destroyed B-99 Colossus 16499 | -1/Garrison | Garrison Relay disabled 16519 | -1/Garrison | Lost 7 allies 16578 | -1/Garrison | Entered Access 16578 | -1/Access | Accompanied by 25 allies 16635 | -1/Access | Spotted B-99 Colossus 16800 | -1/Access | Garrison activated, responded to threat 16913 | -1/Access | Core integrity fell below 50% 17049 | -1/Access | Lost 3 allies 17243 | -1/Access | Lost 6 allies 17309 | -1/Access | Lost 3 allies 17365 | -1/Access | Garrison activated, responded to threat 17394 | -1/Access | Lost 3 allies 17491 | -1/Access | Garrison activated, responded to threat 17539 | -1/Access | Build established: Botlord-Scout 17610 | -1/Access | Found Fusion Bomb Launcher 17618 | -1/Access | Energy Cycler disabled 17630 | -1/Access | Discovered new exit (range 9) 17632 | -1/Access | Identified exit to Command 17633 | -1/Access | Entered Command 17635 | -1/Command | Reached level 35 17750 | -1/Command | Spotted B-99 Colossus 17864 | -1/Command | Allies destroyed B-99 Colossus 17931 | -1/Command | System corruption reached 10% 17933 | -1/Command | Spotted B-99 Colossus 17995 | -1/Command | Core integrity fell below 20% 17999 | -1/Command | Rewired B-99 Colossus 18015 | -1/Command | Lost 7 allies 18027 | -1/Command | Spotted Alpha 7 18027 | -1/Command | Spotted Alpha 7 18027 | -1/Command | Spotted Striker 18027 | -1/Command | Spotted Striker 18027 | -1/Command | Spotted Executioner 18027 | -1/Command | Spotted Executioner 18027 | -1/Command | Spotted Executioner 18027 | -1/Command | Spotted Executioner 18050 | -1/Command | Destroyed Striker 18081 | -1/Command | Lost 3 allies 18112 | -1/Command | Self-destructed Last Messages --------------- 18075_ Penetrated by Slug. 18076_ K-01 Serf collects debris. 18087_ Penetrated by Slug. 18087_ Slug penetrates Terminal. 18087_ Terminal disabled. 18089_ Penetrated by Slug. 18089_ Slug penetrates Wall. 18089_ Slug penetrates Quantum Router. 18096_ System corrupted: Component data lost. 18099_ Penetrated by Slug. 18105_ Critical hit (Destroy). 18105_ Antigrav System destroyed. 18106_ Upgraded: Core Integrity (+550) 18106_ Slug penetrates Terminal. 18108_ Penetrated by Slug. 18109_ Slug penetrates Terminal. 18109_ Slug penetrates Wall. 18110_ Penetrated by Slug. 18110_ Slug penetrates Wall. 18111_ Penetrated by Slug. Map ----- +----------------------------------------------------+ | ?????????????? + ""### | | ??????????????? ####### | | ???????????????????????# % | | ???????????????????????# % | | ???????????????????????# % | | ???????????????????????# % % % | | ???????????????????????# #""####+"###"# | | ???????????????????????# ####??? ?? # | | ???????????????????????# #?????? = ???#? | | ???????????????????????# #??????? ???? | | ???????????????######### #??????? ????? | | ???????????????# #77"#####/#/#####?????????? | | ???????????????# # # #?????????? | | ???????????????# [ # # #?????????? | | ???????????????# # # #?????????? | | ???????????????# # # #?????????? | | ???????????????# / # #?????????? | | ???????????????# # # [! "" #?????????? | | ???????????????# # # [! """ #?????????? | | ???????????????# # # !! "" #?????????? | | ???????????????# ; # " #?????????? | | ???????????????# # # #?????????? | | ???????????????######### # #?????????? | | ??????????????????????#; # #?????????? | | ????????????????######## #######+######?????????? | | ????????????????# @##### #?????????????? | | ????????????????# T #?????????????? | | ????????????????# E " #?????????????? | | ????????????????# o## #?????????????? | | ????????????????## " #######?????????????? | | ?????????????????# k#???????????????????? | | ???????????????### #???????????????????? | | ???????????????# """ #??????###??????????? | | ???????????????# " ##### ## ??????? | | ???????????????### #?????? | | ???????????#?????# % ????????? | | ???????????# ????# % ;;#"# ???????????? | | ???????????# ???#% ;;;;#;+;############?????????? | | ?############ ####% % #?????????? | | + [+ " % ] * #?????????? | | + [ "] # +?????????? | | + !+!!] #?????????? | | + +[!# !! #?????????? | | ??########### ####!!# ! [ #?????????? | | ???????????# ???#%!# % " """" #?????????? | | ???????????# ????#!*# """"""""""" #?????????? | | ???????????#?????#!=!###+################+###????? | | ?????????????????#!* # #????? | | ?????????????????#= # #????? | | ?????????????????# # #????? | +----------------------------------------------------+ Best States ------------- Heat Dissipation 91 Energy Generation 53 Energy Capacity 465 Matter Stores 300 Matter Capacity 300 Sight Range 19 Robot Scan Range 30 Terrain Scan Density 10 Armor Coverage 550 Resistance: KI 20 Resistance: TH 20 Resistance: EX 20 Resistance: EM 20 Resistance: I 20 Resistance: S 20 Resistance: P 20 Propulsion Shielding 33 Phase Shifting 15 Evasion (%) 74 Core Analysis 6 Armor Integrity Analysis 30 Matter Filtering 50 Salvage Targeting 3 Offensive Hacking 30 Defensive Hacking 15 Relay Coupler Types 8 Relay Coupler Value 375 Authchip Count 1 Item Schematics ----------------- Hyp. Gauss Rifle | -6/Factory | Hacked Robot Schematics ------------------ G-47 Trooper | -7/Factory | Hacked T-07 Excavator | -7/Factory | Hacked Fabricated ------------ H-88 Terminator | x2 | -2/Research | Preloaded, Authchip Alien Tech Used ----------------- None Achievements -------------- None Challenges ------------ None RPGLIKE | -11 -10 -10 -10 -9 -8 -8 -8 -8 -8 -7 -7 -7 -7 -6 -6 -6 -6 -5 -5 -5 -5 -4 -4 -3 -3 -2 -2 -2 -2 -1 -1 -1 -1 --------- Run | Yrd Mat Min Exi Min Mat Gar Mat Gar Mat Fac Gar Fac Gar Fac Gar Fac Gar Fac Gar Fac Gar Fac Gar Res Gar Res Gar Res Gar Acc Gar Acc Com Levels Raised 34 | . 1 1 . 1 4 3 1 1 . 2 1 . . 2 1 . . 1 1 1 1 1 1 2 1 2 1 . . 2 1 . 1 XP Earned 55976 | 4000 1965 1245 200 1451 6172 4142 1608 1458 955 2586 920 242 1035 1899 1656 . 721 1500 1494 411 1581 2158 1714 2016 2001 2661 1368 91 673 3019 1587 292 1155 XP Spent 54835 | 2000 1920 900 . 1900 4000 5440 1100 3675 800 2375 690 1600 . . . 3700 . . . . 3850 2900 1000 . 3200 5600 . . . 3800 . . 4385 Upgrades 80 | 4 6 2 . 2 8 10 1 9 1 4 3 1 . . . 2 . . . . 3 1 1 . 1 2 . . . 1 . . 18 Power Slot 2 | 1 1 . . . . . . . . . . . . . . . . . . . . . . . . . . . . . . . . Propulsion Slot 4 | 1 . . . . . 1 1 . . . . . . . . 1 . . . . . . . . . . . . . . . . . Utility Slot 12 | 1 1 . . 1 . 1 . 1 . 1 . . . . . 1 . . . . 1 1 . . 1 1 . . . 1 . . . Weapon Slot 2 | 1 . . . 1 . . . . . . . . . . . . . . . . . . . . . . . . . . . . . Core Integrity 17 | . . . . . . . . . . . . . . . . . . . . . . . . . . . . . . . . . 17 Heat Dissipation 11 | . 4 . . . . 4 . . . . 3 . . . . . . . . . . . . . . . . . . . . . . Mass Support 6 | . . . . . . 3 . . . . . 1 . . . . . . . . . . . . . 1 . . . . . . 1 Inventory Capacity 4 | . . . . . . . . 1 . . . . . . . . . . . . 2 . 1 . . . . . . . . . . Sight Range 3 | . . . . . . . . 3 . . . . . . . . . . . . . . . . . . . . . . . . . Sensor Range 5 | . . . . . . . . 2 . 3 . . . . . . . . . . . . . . . . . . . . . . . Ranged Accuracy 5 | . . 2 . . 2 1 . . . . . . . . . . . . . . . . . . . . . . . . . . . Hack Attack % 4 | . . . . . 3 . . . 1 . . . . . . . . . . . . . . . . . . . . . . . . Hack Defense % 3 | . . . . . 3 . . . . . . . . . . . . . . . . . . . . . . . . . . . . KI Damage % 2 | . . . . . . . . 2 . . . . . . . . . . . . . . . . . . . . . . . . . Protomatter Created 5196 | . 185 73 . . 144 328 220 442 287 362 140 26 407 59 637 . 221 . 177 131 336 . 247 . 146 102 . . 240 . 286 . . Integrity Restored 12938 | . 147 89 . . 346 435 432 875 255 460 407 42 413 170 1253 . 435 . 294 392 1209 117 999 . 552 99 398 197 869 27 768 685 573 Core 9160 | . 109 60 . . 210 411 284 699 195 372 221 26 290 102 902 . 213 . 294 383 648 117 667 . 350 76 271 176 557 12 478 464 573 Parts 3778 | . 38 29 . . 136 24 148 176 60 88 186 16 123 68 351 . 222 . . 9 561 . 332 . 202 23 127 21 312 15 290 221 . Protomatter Decayed 5799 | . 132 38 . . . 148 19 75 235 152 58 . 326 41 126 . 37 . 79 . 287 39 214 . 594 136 369 465 495 516 402 644 172 Game ------ Seed GaussClaymoresChronowheel Manual? 0 Play Time 04:57:57 Cumulative 197.5 hours Start 2024.12.07 @ 18:55:09 End 2024.12.09 @ 08:45:06 Sessions 9 Manual Loads 0 Difficulty Adventurer Special Mode Winter2019/RPGLIKE Game No. 93 Rogue 0 Adventurer 93 Explorer 0 Win Type - Total 7 Types 2/1/2/2/0/0/0/0/0 Lore% 74 Gallery% 67 Achievement% 73 Wizard Run 0 Options --------- Layout 2 ASCII 0 Keyboard 0 Movement Numpad Keybinds 0 Fullscreen 2 Font 24/Smallcaps Map View 50x44 Zoom Use 0% Tactical HUD 1 Map Filters NONE Filters NONE Steam 1 RUN: 4a08ade2-ceac-49c9-b4f6-7974d8ab06b2